{"text_format":"3","workbook":"xlsx","n_sheets":8,"sheets":["Saobraćajnica","Teh.pros.","Voda u parku","Fekalna kanalizacija u parku","Zalivni sistem","EE Instalacije","Spoljnouredjenje","rekapitulacija svega"],"not_rendered":{"defined_names":14},"read":"whole","date_system":"1900"}

{"sheet":"Saobraćajnica","index":0,"n_rows":91,"n_cols":7,"rows_kept":91,"merged":[[0,1,0,6],[1,1,1,6],[2,1,2,6],[4,4,5,4],[50,2,52,2],[55,2,56,2],[57,2,60,2],[64,2,67,2],[70,2,73,2],[76,2,77,2],[84,2,84,4],[84,5,84,6],[85,2,85,4],[85,5,85,6],[86,2,86,4],[86,5,86,6],[87,2,87,4],[87,5,87,6],[88,2,88,4],[88,5,88,6],[89,2,89,4],[89,5,89,6],[90,2,90,4],[90,5,90,6]]}
[null,"2.2.5.3. ПРЕДРАЧУН РАДОВА"]
[null,"Главашев парк у Смедеревској Паланци"]
[null,"2.2- Пројекат саобраћајнице"]
[]
[null,"бр.","опис","јед.","количина","јединична"," укупно "]
[null,"поз.","радова","мере",null,"цена","динара"]
[null,null,"1.Претходни радови",null,null,"без ПДВ-а","без ПДВ-а"]
[null,"1.1.","Геодетско обележавање и обнављање трасе.","m'",{"v":462,"d":"462.00"},null,{"$f":"F8*E8","v":{"v":0,"d":"0.00"}}]
[null,"1.2.","Уклањање постојећег асфалтног застора са ивичњацима и свим елементима и слојевима подлоге и транспорт на депонију. Просечна дебљина d= 15cm","m²",{"v":2655,"d":"2,655.00"},null,{"$f":"F9*E9","v":{"v":0,"d":"0.00"}}]
[null,"1.3.","Уклањање постојећих гранитних коцки 10х10х10 са утоваром и транспортом на депонију","m²",{"v":296,"d":"296.00"},null,{"v":0,"d":"0.00"}]
[null,"1.4.","Демонтажа и уклањање постојећих  ђубријера за рециклажни отпад и транспорт на депонију.","ком.",15,null,{"v":0,"d":"0.00"}]
[null,"1.5.","Уклањање самосталних клупа и транспорт на место које одреди Инвеститор.","ком.",15,null,{"v":0,"d":"0.00"}]
[null,"1.6.","Уклањање бетонских жардињера и транспорт на место које одреди Инвеститор. ","ком.",9,null,{"v":0,"d":"0.00"}]
[null,"1.7.","Уклањање бетонског стола са клупама за шах.","ком.",1,null,{"v":0,"d":"0.00"}]
[null,"1.8.","Рушење бетонских степеница и транспорт на депонију.","m³",{"v":5,"d":"5.00"},null,{"v":0,"d":"0.00"}]
[null,"1.9.","Машински утовар и транспорт на депонију земљаног материјала из цвећњака- жардињера.","m³",{"v":5,"d":"5.00"},null,{"v":0,"d":"0.00"}]
[null,"1.10.","Демонтажа и уклањање металне ограде анкерисане у бетонску подлогу висине 50 cm и транспорт на место које одреди Инвеститор.","m'",30,null,{"v":0,"d":"0.00"}]
[null,"1.11.","Уклањање постојећих информативних знакова са утоваром и транспортом на место које одреди Инвеститор.","ком.",1,null,{"v":0,"d":"0.00"}]
[null,"1.12.","Нивелисање постојећих шахти са заменом шахт поклопаца. Позиција обухвата све набавке опреме и материјала и уградњу.","ком.",4,null,{"v":0,"d":"0.00"}]
[null,"1.13.","Рушење постојеће фонтане са свим  елементима, слојевима конструкције и свим инсталацијама  са површина предвиђених пројектом.","m³",{"v":50,"d":"50.00"},null,{"v":0,"d":"0.00"}]
[null,"1.14.","Машинско опсецање ивица постојећег асфалта, ради уклапања. Позиција обухвата: опсецање, чишћење, утовар шута и транспорт на депонију. ","m'",125,null,{"v":0,"d":"0.00"}]
[null,"1.15.","Ручни ископ земље за одређивање тачног положаја подземних инсталација.","m³",{"v":2,"d":"2.00"},null,{"$f":"F22*E22","v":{"v":0,"d":"0.00"}}]
[null,"1.16.","Заштита постојећих инсталација бетоном C25/30 (МB30) са МА Ø6mm, d=0,10m. ","m³",{"v":2,"d":"2.00"},null,{"v":0,"d":"0.00"}]
[{"$nulls":5},"свега 1:",{"$f":"SUM(G8:G23)","v":{"v":0,"d":"0.00"}}]
[null,null,"2.Доњи строј "]
[null,"2.1.","Машински ископ дела постојеће коловозне конструкције и материјала са утоваром и транспортом на депонију.","m³",{"$f":"(2951+222)*0.43","v":{"v":1364.3899999999999,"d":"1,364.39"}},null,{"$f":"F26*E26","v":{"v":0,"d":"0.00"}}]
[null,"2.2.","Уређење постељице на пешачкој стази, Мs=30MPa","m²",{"v":2951,"d":"2,951.00"},null,{"$f":"F27*E27","v":{"v":0,"d":"0.00"}}]
[null,"2.3.","Замена постељице шљунком или песком, d=30cm, уколико је Ms< 30MPa или ЦБР< 5%. Постићи минимално Ms= 30MPа.","m³",{"v":443,"d":"443.00"},null,{"$f":"F28*E28","v":{"v":0,"d":"0.00"}}]
[null,"2.4.","Набавка, транспорт и постављање геотекстила","m²",{"v":3173,"d":"3,173.00"},null,{"$f":"F29*E29","v":{"v":0,"d":"0.00"}}]
[null,"2.5.","Машинско разастирање, планирање и збијање  ископаног материјала и земље  на депонији без ваљања.","m³",{"$f":"E26","v":{"v":1364.3899999999999,"d":"1,364.39"}},null,{"$f":"F30*E30","v":{"v":0,"d":"0.00"}}]
[{"$nulls":5},"свега 2:",{"$f":"SUM(G26:G30)","v":{"v":0,"d":"0.00"}}]
[null,null,"3.Горњи строј "]
[null,"3.1.","Набавка, транспорт и уградња тампона од дробљеног каменог агрегата 0- 63mm (мин d=20cm, Мs=50MPa):","m³",{"$f":"(2951+222)*0.2","v":{"v":634.6,"d":"634.60"}},null,{"$f":"F33*E33","v":{"v":0,"d":"0.00"}}]
[null,"3.2.","Набавка, транспорт и уградња тампона од дробљеног каменог агрегата 0-31,5mm (d=10cm, Мs=60MPa):","m³",{"$f":"(2951+222)*0.1","v":{"v":317.3,"d":"317.30"}},null,{"$f":"F34*E34","v":{"v":0,"d":"0.00"}}]
[null,"3.3.","Набавка, транспорт и уградња сивих вибропресованих ивичњака у стандардно бетонско раме C16/ 20 на слоју чистоће d= 10cm. "]
[null,"-","8/ 20 (без надвишења у односу на бехатон)","m'",{"v":950,"d":"950.00"},null,{"$f":"F36*E36","v":{"v":0,"d":"0.00"}}]
[null,"-","12/ 18","m'",{"v":140,"d":"140.00"},null,{"v":0,"d":"0.00"}]
[null,"3.4.","Уградња бехатон плоча типа комбо макс, формата мултиформат или сл., фугне 0-2mm, на слоју песка фракције 4- 8mm, d= 5cm. Бехатон плоча је двослојна са завршном обрадом од кварцног песка са различитим нијансама боја - колормикс. Цена обухвата све набавке, транспорт и уградњу."]
[null,"-","d = 6 cm","m²",{"v":1255,"d":"1,255.00"},null,{"v":0,"d":"0.00"}]
[null,"-","d = 8 cm","m²",{"v":1696,"d":"1,696.00"},null,{"v":0,"d":"0.00"}]
[null,"3.5.","Набавка, транспорт и уградња растер бетон- трава плоча d= 10cm, на слоју песка, фракције 4- 8mm, d= 5cm. Рупе попунити мешавином хумуса и семена траве по 50%. Заливати до ницања траве.","m²",{"v":222,"d":"222.00"},null,{"v":0,"d":"0.00"}]
[{"$nulls":5},"свега 3:",{"$f":"SUM(G33:G34,G35:G41)","v":{"v":0,"d":"0.00"}}]
[null,null,"4. Бетонски и армирачки радови"]
[null,"4.1.","Изградња степеница бетоном С25/ 30 са потребном оплатом.","m³",1.35,null,{"$f":"F44*E44","v":{"v":0,"d":"0.00"}}]
[null,"4.2.","Набавка, транспорт и постављање арматуре MA Q188 на степеницама.","kg",{"$f":"7.4*0.25*3*3.03","v":{"v":16.8165,"d":"16.82"}},null,{"$f":"F45*E45","v":{"v":0,"d":"0.00"}}]
[{"$nulls":5},"свега 4:",{"$f":"SUM(G44:G45)","v":{"v":0,"d":"0.00"}}]
[null,null,"5. Завршни и остали радови"]
[null,"5.1.","Геодетско снимање  изведеног објекта са предајом у катастар непокретности.","m'",{"v":462,"d":"462.00"},null,{"$f":"F48*E48","v":{"v":0,"d":"0.00"}}]
[{"$nulls":5},"свега 5:",{"$f":"SUM(G48:G48)","v":{"v":0,"d":"0.00"}}]
[null,null,"6. Паркинг"]
[null,"6.1.","Набавка и превоз до места постављања носача саобраћајног знака од челичне цеви Ø 60mm са PVC чепом, заштићена од корозије поступком топлог цинковања, дебљине цинка 60µ"]
[]
[]
[null,"а.","Једностубни цевни носач висине 3300 mm","ком.",1,null,{"$f":"E54*F54","v":{"v":0,"d":"0.0"}}]
[null,"б.","Једностубни цевни носач висине 3700 mm","ком.",3,null,{"$f":"E55*F55","v":{"v":0,"d":"0.0"}}]
[null,"в.","Постављање носача стандардног саобраћајног знака у претходно израђену стопу од бетона МБ15"]
[{"$nulls":3},"ком.",{"$f":"SUM(E54:E56)","v":4},null,{"$f":"E57*F57","v":{"v":0,"d":"0.0"}}]
[null,"6.2.","Набавка и превоз до места постављања саобраћајних знакова класе 1 рефлектујућих особина са свим елементима за причвршћивање за стуб са антиграфит фолијом (појачање, обујмице, завртњи, манжетне и др.) "]
[]
[]
[]
[null,"а.","III-30, a=600mm","ком.",3,null,{"$f":"E62*F62","v":{"v":0,"d":"0.0"}}]
[null,"б.","IV-5, 600x300mm (Само на обележеним паркинг местима)","ком.",2,null,{"v":0,"d":"0.0"}]
[null,"в.","IV-21, 600x300mm ","ком.",1,null,{"v":0,"d":"0.0"}]
[null,"6.3.","Набавка и превоз до места постављања саобраћајних знакова класе 2 рефлектујућих особина са свим елементима за причвршћивање за стуб са антиграфит фолијом (појачање, обујмице, завртњи, манжетне и др.) "]
[]
[]
[]
[null,"а.","II-2, Ø600mm","ком.",1,null,{"$f":"E69*F69","v":{"v":0,"d":"0.0"}}]
[null,"6.4.","Монтажа саобраћајног знака на носач знака ","ком.",{"$f":"SUM(E62:E69)","v":7},null,{"$f":"E70*F70","v":{"v":0,"d":"0.0"}}]
[null,"6.5.","Обележавање коловоза бојом ретрорефлектујућих особина са предходним чишћењем и одмашћивањем коловоза, размеравање бојених површина и фарбање коловоза. Цена обухвата и набавку и допрему боје и перле до места обележавања."]
[]
[]
[]
[null,"а.","косо паркинг место, бела боја","ком.",13,null,{"$f":"E75*F75","v":{"v":0,"d":"0.0"}}]
[null,"б.","паркинг место за возила особа са инвалидтетом, жута боја","ком.",1,null,{"$f":"E76*F76","v":{"v":0,"d":"0.0"}}]
[null,"6.6.","Набавка, превоз и монтажа стубића од гуменог гранулата, облика ваљка, пречника 70 mm и висине 650 mm, за спречавање нежељеног улажења возила у парк"]
[{"$nulls":3},"ком.",11,null,{"$f":"E78*F78","v":{"v":0,"d":"0.0"}}]
[{"$nulls":5},"свега 6:",{"$f":"SUM(G54:G78)","v":{"v":0,"d":"0.0"}}]
[]
[]
[null,null,"НАПОМЕНА: Депонију обезбеђује извођач радова."]
[]
[null,null,"Рекапитулација:"]
[null,null,"1. Претходни радови-------------------------------------------------------------------------------",null,null,{"$f":"G24","v":{"v":0,"d":"0.00"}}]
[null,null,"2. Доњи строј------------------------------------------------------------------------------------------",null,null,{"$f":"G31","v":{"v":0,"d":"0.00"}}]
[null,null,"3. Горњи строј--------------------------------------------------------------------------------------",null,null,{"$f":"G42","v":{"v":0,"d":"0.00"}}]
[null,null,"4. Бетонски и армирачки радови--------------------------------------------------------------",null,null,{"$f":"G46","v":{"v":0,"d":"0.00"}}]
[null,null,"5. Завршни и остали pадови----------------------------------------------------------------------",null,null,{"$f":"G49","v":{"v":0,"d":"0.00"}}]
[null,null,"6. Паркинг----------------------------------------------------------------",null,null,{"$f":"G79","v":{"v":0,"d":"0.00"}}]
[null,null,"Укупно динара без ПДВ:",null,null,{"$f":"SUM(F85:G90)","v":{"v":0,"d":"0.00"}}]

{"sheet":"Teh.pros.","index":1,"n_rows":40,"n_cols":8,"rows_kept":40,"merged":[[1,0,1,7]]}
[null,"OBRAZAC STRUKTURE PONUDJENE CENE"]
["PREDMER RADOVA NA REKONSTRUKCIJI TEHNIČKE PROSTORIJE                                                                              GRAĐEVINSKI RADOVI"]
[]
["I","Земљани радови"]
[]
[{"v":1,"d":"1."},"Ископ  земље  3  категорије   техничку просторију ради израде спољне хидроизолације. Ископ   извести  према   пројекту   и   датим котама. Бочне стране правилно одсећи, а дно нивелисати. Ископану земљу  оставити ради враћања након израде хидроизолације. Обрачун по м³, мерено у збијеном стању на\r\nудаљеност до 5км. ","m3",10.72,"x",null,"=",{"$f":"+D6*F6","v":{"v":0,"d":"0.00"}}]
[]
[{"v":2,"d":"2."},"Затрпавање око објекта земљом из ископа. Обрачун по м³.","m3",10.72,"x",null,"=",{"$f":"+D8*F8","v":{"v":0,"d":"0.00"}}]
[]
["II","Разни радови"]
[]
[{"v":1,"d":"1."},"Унутрашње малтерисање  зидова и плафона техничке просторије продужним малтером у два слоја са предхидним прскањем зидова цементним шприцом.У цену урачунати све потребне радње и пратећи материјал.  Обрачун по м².\r","m2",116.56,"x",null,"=",{"$f":"+D12*F12","v":{"v":0,"d":"0.00"}}]
[]
[{"v":2,"d":"2."},"Зидарско кречење зидова и плафона техничке просторије.У цену урачунати све потребне радње и пратећи материјал.  Обрачун по м².\r","m2",116.56,"x",null,"=",{"$f":"+D14*F14","v":{"v":0,"d":"0.00"}}]
[]
[{"v":3,"d":"3."},"Изолација техничке просторије са спољне стране са 1 слојем Кондора 4 са слојем стиродура д=5цм . У цену урачунати све потребне радње и пратећи материјал.  Обрачун по м².\r","m2",{"v":26.8,"d":"26.80"},"x",null,"=",{"$f":"+D16*F16","v":{"v":0,"d":"0.00"}}]
[]
[{"v":4,"d":"4."},"Хидроизолациони пенетрациони премаз техничке просторије , у свему према упутству произвођача са свим потребним предрадњама и материјалом. Радити у више слојева тако да се обезбеди потпуна водонепропусност\r шахте. Обрачун по м2.\r","m2",{"v":31,"d":"31.00"},"x",null,"=",{"$f":"+D18*F18","v":{"v":0,"d":"0.00"}}]
[]
[{"v":5,"d":"5."},"Израда цеметне кошуљице на поду техничке просторије дебљине 3-5 цм са завршном обрадом пердашењем, а у  свему према упутству произвођача са свим потребним предрадњама и материјалом.  Обрачун по м2.\r","m2",{"v":31,"d":"31.00"},"x",null,"=",{"$f":"+D20*F20","v":{"v":0,"d":"0.00"}}]
[]
[{"v":6,"d":"6."},"Завршна обрада подова, премаз стандардним самоливајући под ЕПОХУ, а у  свему према упутству произвођача са свим потребним предрадњама и материјалом.  Обрачун по м2.\r","m2",{"v":31,"d":"31.00"},"x",null,"=",{"$f":"+D22*F22","v":{"v":0,"d":"0.00"}}]
[]
[{"v":7,"d":"7."},"Попуњавање мањих оштећења у бетонским елементима у слоју дебљине 7- 12 мм двокомпонентним полимернимцементним материјалом Изолит РЕПАРАТОР АДВАНЦЕ или сличним. Масу за уградњу припремити мешањем прашкасте и течне компоненте, а према\r\nупутству произвођача. Припремљену смесу нанети глетелицом или шпахтлом преко чисте, чврсте и овлажене бетонске подлоге, у свему према упутству произвођача. У цену урачунати и потребну количину Изолит везе прајмера којом је пре уградње материјала потребно премазати подлогу ради ојачања атхезије, а такође у свему према упутству произвођача. Обрачун по м².","m2",{"$f":"+D18","v":{"v":31,"d":"31.00"}},"x",null,"=",{"$f":"+D24*F24","v":{"v":0,"d":"0.00"}}]
[]
["III","Браварски радови"]
[]
[]
[{"v":1,"d":"1."},"Набавка, транспорт и монтажа металних двокрилних врата са заштитом од приступа неовлашћеним лицима, са антикорозивним премазом.  Обрачун по комаду."]
[null,"Димензије 1.60мx2,20м.","kom",{"v":1,"d":"1.00"},"x",null,"=",{"$f":"+D30*F30","v":{"v":0,"d":"0.00"}}]
[null,"Димензије 0.80мx2,00м.","kom",{"v":2,"d":"2.00"},"x",null,"=",{"v":0,"d":"0.00"}]
[]
[{"v":2,"d":"2."},"Набавка, транспорт и монтажа мобилних металних мердевина висине 1,5м. Обрачун по комаду.","kom",{"v":1,"d":"1.00"},"x",null,"=",{"$f":"+D33*F33","v":{"v":0,"d":"0.00"}}]
[]
[]
[null,"РЕКАПИТУЛАЦИЈА ГРАЂЕВИНСКИХ РАДОВА "]
[]
[null,"УКУПНА ВРЕДНОСТ РАДОВА",{"$nulls":5},{"$f":"+SUM(H6:H36)","v":{"v":0,"d":"0.00"}}]
[]
[null,"УКУПНО:",{"$nulls":5},{"$f":"H38","v":{"v":0,"d":"0.00"}}]

{"sheet":"Voda u parku","index":2,"n_rows":61,"n_cols":8,"rows_kept":61,"merged":[[1,0,1,7],[10,0,11,0],[12,0,13,0],[14,0,15,0]]}
[]
["ПРЕДМЕР РАДОВА НА РЕКОНСТРУКЦИЈИ ВОДОВОДНЕ МРЕЖЕ У ПАРКУ  "]
[]
[]
["I","Земљани радови"]
[]
["1","Машински ископ земље 2 и 3 категорије за полагање  цевовода  са подграђивањем. \r\nПозиција обухвата и претходно машинско скидање хумуса у слоју од 20цм са одлагањем на привремену депонију ради каснијег хумузирања. У цену ове позиције урачунати све радове на ископу, подгради рова. Обрачун по м3 ископане земље."]
[null," главни вод прикључка","м3",{"v":32,"d":"32.00"},"x",null,"=",{"$f":"D8*F8","v":{"v":0,"d":"0.00"}}]
[null,"хидранска мрежа","м3",{"v":94.2,"d":"94.20"},"x",null,"=",{"$f":"D9*F9","v":{"v":0,"d":"0.00"}}]
[]
["2","Планирање дна рова са тачношћу од  +/- 2 цм према пројектованој нивелети. Обрачун по м2 испланиране површине.","м2",{"$f":"D8*0.6+D9*0.6","v":75.72},"x",null,"=",{"$f":"D11*F11","v":{"v":0,"d":"0.00"}}]
[]
["3","Набавка, транспорт и разастирање песка дуж рова крупноће зрна до 4мм, 10цм испод цеви, око цеви и 10цм изнад цеви са финим планирањем горње површине и уградњом песка са набијањем у слојевима.  Обрачун по м3 уграђеног песка.","м3",{"$f":"D8*0.3+D9*0.3","v":37.86},"x",null,"=",{"$f":"D13*F13","v":{"v":0,"d":"0.00"}}]
[]
["4","Насипање земљом из ископа, изнад цеви и постељице од песка, са разастирањем, планирањем и квашењем  и набијањем до потребне збијености. Захтевани степен збијености треба да износи МС=50 МПа, проверава се кружном плочом д=30 цм, један узорак на сваких 80 м рова. Обрачун по м3 уграђеног материјала.","м3",{"$f":"D8*0.7+D9*0.7","v":88.34},"x",null,"=",{"$f":"D15*F15","v":{"v":0,"d":"0.00"}}]
[]
[{"v":5,"d":"5."},"Утовар, одвоз и истовар вишка земље на депонију или локацију коју одреди надлежни орган а до удаљености од око 5км. Обрачун по м3 одвежене земље.","м3",{"$f":"D7-D13+D15","v":{"v":50.480000000000004,"d":"50.48"}},"x",null,"=",{"$f":"D17*F17","v":{"v":0,"d":"0.00"}}]
[]
["II","Монтажерски радови"]
[]
["1","Набавка, транспорт, истовар, разношење дуж рова, спуштање у ров и монтажа  цеви у свему према техничким прописима и препорукама произвођача. ПЕХД-цеви ДН 110мм   ПН10, СРПС-ЕН 12201. Радни притисак 20˚Ц/ПН10, за пијаћу воду, отпорне на УВ-зраке и температуре од -30˚Ц до +60˚Ц, означене плавом бојом, произвођач, тип, радни притисак и датум производње утиснути на свакој цеви. Фактор сигурности ц=1.25. Спецификација по ДИН 8074/8075, .  Обрачун по м' уграђеног цевовода."]
[null," главни вод прикључка","м'",{"v":53,"d":"53.00"},"x",null,"=",{"$f":"D22*F22","v":{"v":0,"d":"0.00"}}]
[null,"хидранска мрежа","м'",{"v":157,"d":"157.00"},"x",null,"=",{"$f":"D23*F23","v":{"v":0,"d":"0.00"}}]
["2","Набавка, испорука и уградња арматуре и фазонских комада од ПЕ материјала. Обрачун по комаду."]
[null,"ЕФ Q комад 90 ДН110","ком",{"v":1,"d":"1.00"},"x",null,"=",{"$f":"D25*F25","v":{"v":0,"d":"0.00"}}]
[null,"електорфузиона спојница без граничника  ДН90","ком",{"$f":"3*3","v":{"v":9,"d":"9.00"}},"x",null,"=",{"$f":"D26*F26","v":{"v":0,"d":"0.00"}}]
[null,"\r\nЕФ СА седло ДН110/90\r\n","ком",{"v":3,"d":"3.00"},"x",null,"=",{"$f":"D27*F27","v":{"v":0,"d":"0.00"}}]
[null,"Фриатец вентил ДН 90","ком",{"v":3,"d":"3.00"},"x",null,"=",{"$f":"D28*F28","v":{"v":0,"d":"0.00"}}]
[null,"WФ ЕФ Н комад ДН 90","ком",{"v":3,"d":"3.00"},"x",null,"=",{"v":0,"d":"0.00"}]
[null,"телескопска гарнитура са уличном капом","ком",{"v":3,"d":"3.00"},"x",null,"=",{"$f":"D30*F30","v":{"v":0,"d":"0.00"}}]
[]
["3","Набавка, испорука и уградња арматуре и фазонских комада од нодуларног (дуктилног) лива који одговарају стандарду ДИН ЕН 545; димензије прирубница и отвори према ЕН 1092-2, ПН 12; заједно са вијцима и наврткама, подлошкама и заптивкама. Заштита: унутршњи и сполјашњи епокси слој мин. 250 миц. И арматура и фазонски комади морају да буду од европског произвођача који поседује сертификате ИСО9001 и 14001. Предност ће имати понуда која садржи и арматуру и фазонски комади од истог произвођача."]
[null,"Фазонски комади"]
[null,"Надземни против пожарни хидрант ДН 80","ком",{"v":3,"d":"3.00"},"x",null,"=",{"$f":"D34*F34","v":{"v":0,"d":"0.00"}}]
[null,"Т комад ДН 100/100","ком",{"v":2,"d":"2.00"},"x",null,"=",{"$f":"D35*F35","v":{"v":0,"d":"0.00"}}]
[null,"фланш адаптер ДН 110","ком",{"v":6,"d":"6.00"},"x",null,"=",{"$f":"D36*F36","v":{"v":0,"d":"0.00"}}]
[null,"туљак  са летећом прирубницом ДН 80/90","ком",{"v":6,"d":"6.00"},"x",null,"=",{"$f":"D37*F37","v":{"v":0,"d":"0.00"}}]
[]
[]
["4","Затварачи:Набавка, транспорт и монтажа засуна са уградбеном гарнитуром и уличном ливеногвозденом капом (ГГ250) Кратак, ПН 12, ДИН 3352/П4, димензије одговарају према ЕН 558-1 ГР14-кратакт (ДИН 3202-Ф4) димензије прирубница и бушење према ЕН 1092-2 ПН 12 (ДИН 28605 / ДИН 2501), кућиште и поклопац од дуктилног лива ЕН-ГЈС-400-18 према ЕН 1563 (ГГГ 400- ДИН 1693), флуидизовани слој епокси премаза - и сполја према ДИН 30677-П2 према тесту квалитета захтеви РАЛ-Qуалитy Марк 662, клин од  нодуларног лива ЕН-ГЈС-400-18 према ЕН 1563 (ГГГ 400-ДИН 1693), унутрашња заштита од корозије,  заливено вулканизираним ЕПДМ сполја, са одводном рупом, са челичним телескопским вретеном (мин. оцене квалитета 1.4021-X20Цр13), валјани навој, завртњи заштићени од корозије урањањем и заливањем   воском и заптивком поклопца. Вођица вретена заштићена од воде и прлјавштине сполја бришућим прстеном.  уклјучујући завртње, навртке, подлошке и заптивке за следеће пречнике. Обрачун по комаду секторског вентила ДН100.","ком",{"v":1,"d":"1.00"},"x",null,"=",{"$f":"D40*F40","v":{"v":0,"d":"0.00"}}]
[]
["5","Набавка, транспорт и  уградња траке за обележавање са металним деловима, са поруком \"Упозорење Водоводне цеви\". Боја траке за обележавање: жута, боја поруке: црна. Обрачун по м'","м'",{"v":220,"d":"220.00"},"x",null,"=",{"$f":"D42*F42","v":{"v":0,"d":"0.00"}}]
[]
[]
["III","Остали радови"]
[]
[1,"Израда подземног катастра после полагања и испитивања цевовода, а пре затрпавања (водоводна мрежа) . Обрачун по м.","м'",{"v":220,"d":"220.00"},"x",null,"=",{"$f":"D47*F47","v":{"v":0,"d":"0.00"}}]
[]
[2,"Пробно хидрауличко испитивање цевовода - водоводна мрежа. Обрачун по м.","м'",{"v":220,"d":"220.00"},"x",null,"=",{"$f":"D49*F49","v":{"v":0,"d":"0.00"}}]
[]
[3,"Дезинфекција цевовода у свему према техничким условима -водоводна мрежа. Обрачун по м'.","м'",{"v":220,"d":"220.00"},"x",null,"=",{"$f":"D51*F51","v":{"v":0,"d":"0.00"}}]
[]
[4,"Геодетски снимак и елаборате подземних\r\nинсталација. Обрачун паушално.","пауш.",{"$nulls":3},"="]
[]
[5,"Елаборат геодетских радова за подземне\r\nинсталације за изведен објекат. Обрачун паушално.","пауш",{"$nulls":3},"="]
[]
[null,"РЕКАПИТУЛАЦИЈА  РАДОВА НА РЕКОНСТРУКЦИЈИ ВОДОВОДНЕ МРЕЖЕ У ПАРКУ"]
[]
[null,"УКУПНА ВРЕДНОСТ РАДОВА",{"$nulls":5},{"$f":"SUM(H6:H58)","v":{"v":0,"d":"0.00"}}]
[]
[null,"УКУПНО:",{"$nulls":5},{"$f":"H59","v":{"v":0,"d":"0.00"}}]

{"sheet":"Fekalna kanalizacija u parku","index":3,"n_rows":67,"n_cols":8,"rows_kept":67,"merged":[[1,0,1,7],[11,0,12,0],[13,0,15,0],[16,0,17,0],[18,0,19,0],[24,0,25,0],[26,0,27,0],[28,0,29,0],[62,1,62,5]]}
[]
["ПРЕДМЕР РАДОВА ВОДОВОДНЕ И КАНАЛИЗАЦИОНЕ  МРЕЖЕ ЧЕСМЕ У ПАРКУ "]
[]
[]
["I","Земљани радови"]
[]
["1","Машински ископ земље 2 и 3 категорије за полагање цевовода и шахти са подграђивањем. \r\nПозиција обухвата и претходно машинско скидање хумуса у слоју од 20цм са одлагањем на привремену депонију ради каснијег хумузирања. У цену ове позиције урачунати све радове на ископу, подгради рова. Обрачун по м3 ископане земље."]
[null,"водовод-цевовод","м3",{"v":36.3,"d":"36.30"},"x",null,"=",{"$f":"D8*F8","v":{"v":0,"d":"0.00"}}]
[null,"канализација-цевовод","м3",17.92,"x",null,"=",{"$f":"D9*F9","v":{"v":0,"d":"0.00"}}]
[null,"канализационе шахте","м3",{"v":1,"d":"1.00"},"x",null,"=",{"$f":"D10*F10","v":{"v":0,"d":"0.00"}}]
[]
["2","Планирање дна рова са тачношћу од  +/- 2 цм према пројектованој нивелети. Обрачун по м2 испланиране површине.","м2",{"$f":"D8*0.6+D9*0.6","v":{"v":32.532,"d":"32.53"}},"x",null,"=",{"$f":"D12*F12","v":{"v":0,"d":"0.00"}}]
[]
["3","Набавка, транспорт и разастирање песка дуж рова крупноће зрна до 4мм, 10цм испод цеви, око цеви и 10цм изнад цеви са финим планирањем горње површине и уградњом песка са набијањем у слојевима.  Обрачун по м3 уграђеног песка."]
[null,"канализација-цевовод","м3",6.58,"x",null,"=",{"$f":"D15*F15","v":{"v":0,"d":"0.00"}}]
[]
["4","Набавка материјала, транспорт и тампон слоја од шљунка природне гранулације д=20цм испод шахти и око шахти. Обрачун по м3 уграђеног шљунка.  ","м3",1.65,"x",null,"=",{"$f":"D17*F17","v":{"v":0,"d":"0.00"}}]
[]
["5","Набавка, транспорт, разношење гранулисаног материјала, природног порекла, изнад цеви и постелјице од песка, са разастирањем, планирањем и квашењем  и набијањем до потребне збијености. Захтевани степен збијености треба да износи МС=50 МПа, проверава се кружном плочом д=30 цм, један узорак на сваких 80 м рова. Обрачун по м3.","м3",{"$f":"D8*0.7+D9*0.7","v":{"v":37.95399999999999,"d":"37.95"}},"x",null,"=",{"$f":"D19*F19","v":{"v":0,"d":"0.00"}}]
[]
[{"v":6,"d":"6."},"Утовар, одвоз и истовар вишка земље на депонију или локацију коју одреди надлежни орган а до удаљености од око 5км. Обрачун по м3 одвежене земље.","м3",{"$f":"D8+D9+D10-D15+D19","v":{"v":86.594,"d":"86.59"}},"x",null,"=",{"$f":"D21*F21","v":{"v":0,"d":"0.00"}}]
[]
["II","Бетонски радови"]
[]
["1","Набавка, транспорт и израда бетонске подлоге димензија 1,5 x 1,5 м, од армираног бетона МВ 20, дебљине 20 цм, за постављање шахти, у дну шахта одрадити кинету. \r\nОбрачун по м³  уграђене подлоге.","м3",0.45,"x",null,"=",{"$f":"D25*F25","v":{"v":0,"d":"0.00"}}]
[]
["2","Набавка материјала, транспорт и уградња типских АБ префабрикованих прстенова, кружног попречног пречника 100цм, висине 50 цм и дебљине зида 10 цм. Спојеве прстенова обрадити водонепропусним малтером. Обрачун по метру.","м",{"v":1,"d":"1.00"},"x",null,"=",{"$f":"D27*F27","v":{"v":0,"d":"0.00"}}]
[]
["3","Набавка материјала, транспорт и уградња типских АБ бетонских , префабрикованих, конусних прстенова, унутрашњег пречника  600/1000 мм, висине 0,60 м.\r\nОбрачун по комаду.","ком.",{"v":1,"d":"1.00"},"x",null,"=",{"$f":"D29*F29","v":{"v":0,"d":"0.00"}}]
[]
["4","Набавка материјала, транспорт и израда завршних прстенова шахти за уградњу поклопца у нивоу терена, од армираног бетона  МВ30, димензија 1,5 х 1,5 х 0,2 м, са кружним отвором пречника  0,6 м, заједно са оплатом и арматуром.У цену урачуната потребна оплата, арматура и неговање бетона. Обрачун по комаду уграђеног завршног прстена.  ","ком.",{"v":1,"d":"1.00"},"x",null,"=",{"$f":"D31*F31","v":{"v":0,"d":"0.00"}}]
[]
["III","Монтажерски радови"]
[]
["1","Набавка, транспорт и монтажа пвц канализационих цеви и одговарајућих фазонских комада. Спољну мрежу поставити у ровове на постељицу од песка д=10цм. Обрачун по м."]
[null," ПВЦ цев Ø110 ","м'",{"v":56,"d":"56.00"},"x",null,"=",{"$f":"D36*F36","v":{"v":0,"d":"0.00"}}]
[]
["2","Набавка, транспорт и уграђивање цеви одговарајућег фитинга. Након монтаже извршити испитивање мреже на притисак од 10 бара.У цену урачунати и саб потребан фитинг за повезивање . Обрачун по м."]
[null,"ПЕ- НД25","м'",{"v":61,"d":"61.00"},"x",null,"=",{"$f":"D39*F39","v":{"v":0,"d":"0.00"}}]
[]
["3","Набавка, транспорт и уградња спољне чесме. Након монтаже извршити испитивање на притисак .У цену урачунати и саб потребан фитинг за повезивање.  Обрачун по ком.","ком",{"v":1,"d":"1.00"},"x",null,"=",{"$f":"D41*F41","v":{"v":0,"d":"0.00"}}]
[]
["4","Повезивање водоводне мреже за чесму у техничкој просторији. У цену урачунати и сав потребан фитинг за спајање- Обрачун паушал. ","паушал",{"v":1,"d":"1.00"},"x",null,"=",{"$f":"D43*F43","v":{"v":0,"d":"0.00"}}]
[]
["5","Повезивање канализационе мреже чесме у глану канализациону шахту. У цену урачунти, пробијање за цеви,   штевовање и крпљење цеметнима латером након постављања цеви. Обрачун паушал.","паушал",{"v":1,"d":"1.00"},"x",null,"=",{"$f":"D45*F45","v":{"v":0,"d":"0.00"}}]
[]
["IV","Браварски радови"]
[]
["1","Набавка и монтажа ливено-гвоздених пењалица, типа ДИН 1212. У шахтове уградити пењалице на сваких 30цм, смакнуте од осе за по 5цм, наизменично лево и десно. Обрачун по комаду.","ком",{"v":3,"d":"3.00"},"x",null,"=",{"$f":"D49*F49","v":{"v":0,"d":"0.00"}}]
[]
["2","Набавка, транспорт и уградња кружног шахт поклопца са дубоким рамом, пречника 60цм и носивисти  250 кН, у горњи прстен шахта. Обрачун по комаду.","ком",{"v":1,"d":"1.00"},"x",null,"=",{"$f":"D51*F51","v":{"v":0,"d":"0.00"}}]
[]
["V","Остали радови"]
[]
[1,"Израда подземног катастра после полагања и испитивања цевовода, а пре затрпавања ( канализациона мрежа) . Обрачун по м.","м'",{"v":117,"d":"117.00"},"x",null,"=",{"$f":"D55*F55","v":{"v":0,"d":"0.00"}}]
[]
[2,"Геодетски снимак и елаборате подземних\r\nинсталација. Обрачун паушално.","пауш.",{"$nulls":3},"="]
[]
[3,"Елаборат геодетских радова за подземне\r\nинсталације за изведен објекат. Обрачун паушално.","пауш",{"$nulls":3},"="]
[]
[4,"Извошење преспајања постојећих прикључака на новопројектовану мрежу. У цену улази сав потребан рад и материјал. Обрачун по комаду.","ком",{"v":1,"d":"1.00"},"x",null,"=",{"$f":"D61*F61","v":{"v":0,"d":"0.00"}}]
[]
[null,"РЕКАПИТУЛАЦИЈА РАДОВА НА РЕКОНСТРУКЦИЈИ ФЕКАЛНЕ КАНАЛИЗАЦИОНЕ МРЕЖЕ У ПАРКУ "]
[]
[null,"УКУПНА ВРЕДНОСТ РАДОВА",{"$nulls":5},{"$f":"SUM(H6:H64)","v":{"v":0,"d":"0.00"}}]
[]
[null,"УКУПНО:",{"$nulls":5},{"$f":"H65","v":{"v":0,"d":"0.00"}}]

{"sheet":"Zalivni sistem","index":4,"n_rows":51,"n_cols":8,"rows_kept":51,"merged":[[1,0,1,7],[7,0,8,0],[9,0,10,0],[11,0,12,0]]}
[]
["ПРЕДМЕР РАДОВА НА ЗАЛИВНОМ СИСТЕМУ ПАРКА "]
[]
["I","Земљани радови"]
[]
["1","Машински ископ земље 2 и 3 категорије за полагање цевовода и шахти са подграђивањем. \r\nПозиција обухвата и претходно машинско скидање хумуса у слоју од 20цм са одлагањем на привремену депонију ради каснијег хумузирања. У цену ове позиције урачунати све радове на ископу, подгради рова. Обрачун по м3 ископане земље.","м3",{"v":310.4,"d":"310.40"},"x",null,"=",{"$f":"D6*F6","v":{"v":0,"d":"0.00"}}]
[]
["2","Планирање дна рова са тачношћу од  +/- 2 цм према пројектованој нивелети. Обрачун по м2 испланиране површине.","м2",388.47,"x",null,"=",{"$f":"D8*F8","v":{"v":0,"d":"0.00"}}]
[]
["3","Набавка, транспорт и разастирање песка дуж рова крупноће зрна до 4мм, 10цм испод цеви, око цеви и 10цм изнад цеви са финим планирањем горње површине и уградњом песка са набијањем у слојевима.  Обрачун по м3 уграђеног песка.","м3",{"v":38.1,"d":"38.10"},"x",null,"=",{"$f":"D10*F10","v":{"v":0,"d":"0.00"}}]
[]
["4","Набавка, транспорт, разношење гранулисаног материјала, природног порекла, изнад цеви и постелјице од песка изнад (у зони испод саобраћајница потпуно затрпавање рова гранулисаним материјалом), са разастирањем, планирањем и квашењем  и набијањем до потребне збијености. Захтевани степен збијености треба да износи МС=50 МПа, проверава се кружном плочом д=30 цм, један узорак на сваких 80 м рова. Обрачун по м3 уграђеног материјала.","м3",{"$f":"49*0.6*(0.6-0.33)","v":{"v":7.937999999999999,"d":"7.94"}},"x",null,"=",{"$f":"D12*F12","v":{"v":0,"d":"0.00"}}]
[]
["5","Затрпавање рова пробраном земљом из ископа са набијањем у слојевима. Обрачун по м3 уграђеног материјала.","м3",{"$f":"+(778-49)*0.6*(0.6-0.33)","v":{"v":118.09799999999997,"d":"118.10"}},"x",null,"=",{"$f":"D14*F14","v":{"v":0,"d":"0.00"}}]
[]
["6","Утовар, одвоз и истовар вишка земље на депонију или локацију коју одреди надлежни орган а до удаљености од око 5км. Обрачун по м3 одвежене земље.","м3",{"$f":"+D6-D14","v":{"v":192.30200000000002,"d":"192.30"}},"x",null,"=",{"$f":"D16*F16","v":{"v":0,"d":"0.00"}}]
[]
["II","Монтажерски радови"]
[]
["1","Набавка, транспорт, истовар, разношење дуж рова, спуштање у ров и монтажа  цеви у свему према техничким прописима и препорукама произвођача. ПЕХД-цеви   ПН10, СРПС-ЕН 12201. Радни притисак 20˚Ц/ПН10, за пијаћу воду, отпорне на УВ-зраке и температуре од -30˚Ц до +60˚Ц, означене плавом бојом, произвођач, тип, радни притисак и датум производње утиснути на свакој цеви. Фактор сигурности ц=1.25. Спецификација по ДИН 8074/8075, .  Обрачун по м' уграђеног цевовода."]
[null,"DN 32mm ","м'",{"v":1480,"d":"1,480.00"},"x",null,"=",{"$f":"D21*F21","v":{"v":0,"d":"0.00"}}]
[null,"DN 40mm ","м'",{"v":170,"d":"170.00"},"x",null,"=",{"$f":"D22*F22","v":{"v":0,"d":"0.00"}}]
[null,"DN 50mm ","м'",{"v":3,"d":"3.00"},"x",null,"=",{"$f":"D23*F23","v":{"v":0,"d":"0.00"}}]
[null,"Кап по кап црево","м'",{"v":270,"d":"270.00"},"x",null,"=",{"$f":"D24*F24","v":{"v":0,"d":"0.00"}}]
[]
["2","Набавка, испорука и уградња арматуре и фазонских комада од ПЕ материјала. Обрачун по комаду."]
[null,"PE T-komad DN32/32","ком",{"v":15,"d":"15.00"},"x",null,"=",{"$f":"D27*F27","v":{"v":0,"d":"0.00"}}]
[null,"PE T-komad DN32/40","ком",{"v":10,"d":"10.00"},"x",null,"=",{"v":0,"d":"0.00"}]
[null,"PE Q-komad DN32 90°","ком",{"v":20,"d":"20.00"},"x",null,"=",{"v":0,"d":"0.00"}]
[null,"PE Q-komad DN40 90°","ком",{"v":5,"d":"5.00"},"x",null,"=",{"v":0,"d":"0.00"}]
[null,"PE T-komad DN32/20","ком",{"v":33,"d":"33.00"},"x",null,"=",{"v":0,"d":"0.00"}]
[]
["3","Набавка, испорука и уградња арматуре, опреме и фазонских комада за заливни систем. Обрачун по комаду."]
[null,"Поп-уп ротор 5004 ПЦ, 10 цм, дизна 3.0","ком",{"v":116,"d":"116.00"},"x",null,"=",{"$f":"D34*F34","v":{"v":0,"d":"0.00"}}]
[null,"Спирална спојница 3/4\"М x навојно колено","ком",{"v":150,"d":"150.00"},"x",null,"=",{"$f":"D35*F35","v":{"v":0,"d":"0.00"}}]
[null,"НЕW ОБУЈМИЦА ОЈАЦАНА 25x1/2\"","ком",{"v":150,"d":"150.00"},"x",null,"=",{"v":0,"d":"0.00"}]
[null,"Hunter crevo swing joint","м'",{"v":116,"d":"116.00"},null,null,"=",{"v":0,"d":"0.00"}]
[null,"Спирална спојница 1/2\"М x навојно колено","ком",{"v":33,"d":"33.00"},"x",null,"=",{"v":0,"d":"0.00"}]
[null,"Спојна црево СПX, ролна 30 м","ком",{"v":1,"d":"1.00"},"x",null,"=",{"$f":"D39*F39","v":{"v":0,"d":"0.00"}}]
[null,"Управљачка јединица Hunter 14zona","ком",{"v":1,"d":"1.00"},"x",null,"=",{"v":0,"d":"0.00"}]
[null,"Батерија алкална 9В ","ком",{"v":1,"d":"1.00"},"x",null,"=",{"v":0,"d":"0.00"}]
[null,"Подземни кабл 5*1,5","м'",{"v":150,"d":"150.00"},null,null,"=",{"v":0,"d":"0.00"}]
[null,"Подземни кабл 3*1,5","м'",{"v":350,"d":"350.00"},null,null,"=",{"v":0,"d":"0.00"}]
[null,"САХТ КУТИЈА 10","ком",{"v":8,"d":"8.00"},"x",null,"=",{"v":0,"d":"0.00"}]
[null," Ел.маг.вентил цол''","ком",{"v":14,"d":"14.00"},"x",null,"=",{"v":0,"d":"0.00"}]
[null,"Пумпни агрегат за заливање ЕБАРА МАТРИX 10-5/22 Хyдровисион Београд или одговарајући.","ком",{"v":1,"d":"1.00"},"x",null,"=",{"v":0,"d":"0.00"}]
[null,"РЕКАПИТУЛАЦИЈА ЗАЛИВНОГ СИСТЕМА"]
[]
[null,"УКУПНА ВРЕДНОСТ РАДОВА",{"$nulls":5},{"$f":"+SUM(H5:H47)","v":{"v":0,"d":"0.00"}}]
[]
[null,"УКУПНО:",{"$nulls":5},{"$f":"H49","v":{"v":0,"d":"0.00"}}]

{"sheet":"EE Instalacije","index":5,"n_rows":94,"n_cols":6,"rows_kept":94,"merged":[[2,0,3,0],[2,1,3,1],[2,2,3,2],[2,3,3,3],[2,4,3,4],[2,5,3,5],[56,1,56,3],[58,1,58,3],[90,1,90,4],[91,1,91,3],[92,1,92,3],[93,1,93,3],[96,3,96,5]]}
["4.6. 7.","PREDMER RADOVA JAVNA RASVETA "]
[]
["Red.\nBroj","Opis radova","Jed. Mere.","Količina","Jedinična cena","Iznos"]
[]
["I"," RADOVI NA IZRADI JAVNE RASVETE"]
[null,"Materijala i usluga za javno osvetljenje parkovskih  površina sa kandelaberskim stubovima "]
["A","ELEKTRO MATERIJAL"]
[1,"Niskonaponski kablovski vod PP00/A-4x16mm2","m",1230,null,{"$f":"D8*E8","v":{"v":0,"d":"0.00"}}]
[2,"Niskonaponski kablovski vod PP00-3x1,5mm2","m",240,null,{"v":0,"d":"0.00"}]
[3,"Al plocice za oznaku kablova","kom",46,null,{"v":0,"d":"0.00"}]
[4,"Čelični stub h=4m sa ugrađenom LED uličnom svetiljkom RoadLight Stratus RE488-80W-740, proizvođača OPPLE/LEgroup, namenjena je za osvetljenje saobraćajnica, parking prostora, industrijskih zona i javnih površina, sa naglaskom na energetsku efikasnost, pouzdanost i dug vek trajanja. Svetiljka koristi LED izvor ukupne snage 80 W, pri čemu emituje svetlosni fluks od približno 12.000 lm, što obezbeđuje visoku efikasnost od oko 150 lm/W. Boja svetla je 4000 K (neutralno bela), uz indeks reprodukcije boje CRI > 70 Ra, koji omogućava prirodan prikaz boja i dobru vidljivost u noćnim uslovima.\n\nKućište svetiljke izrađeno je od livenog aluminijuma sa kvalitetnom praškasto sivo obradom (RAL 870-3), otpornom na koroziju i UV zračenje. Zaštitno staklo je kaljeno i UV stabilizovano, obezbeđujući visok stepen pouzdanosti u spoljašnjim uslovima. Svetiljka ima stepen zaštite IP66, što znači potpunu otpornost na prašinu i snažne mlazove vode, kao i mehaničku otpornost IK08. Svetiljka je testirana na otpornost užarenog provodnika (glow-wire test) do 850 °C, što dodatno potvrđuje njenu sigurnost.\n\nOptički sistem pruža preciznu distribuciju svetla sa uglom snopa 143° × 70°, čime se postiže optimalna pokrivenost i minimalno rasipanje svetlosti van ciljne površine. Svetiljka se može montirati bočno (side entry) ili na vrh stuba (pole-top), pomoću univerzalnog adaptera koji omogućava instalaciju na stubove prečnika Ø 60–76 mm, uz mogućnost podešavanja ugla nagiba.\n\nPredviđena je za rad u temperaturnom opsegu od –25 °C do +45 °C, sa životnim vekom L70 ≥ 100.000 sati i više od 100.000 ciklusa uključivanja/isključivanja, što značajno smanjuje troškove održavanja. Napajanje (drajver) je elektronsko, visokog faktora snage (PF ≥ 0,9) i niskih gubitaka, sa zaštitom od prenapona i termičkog opterećenja.\n\nSvetiljka RoadLight Stratus RE488-80W-740 proizvođača OPPLE/LEgroup projektovana je u skladu sa važećim evropskim standardima i direktivama, poseduje CE oznaku i namenjena je zahtevnim spoljnim instalacijama gde su potrebni dug vek, pouzdan rad i visok kvalitet osvetljenja.","kom",46,null,{"v":0,"d":"0.00"}]
[6,"PVC upozoravajuca traka","m",1230,null,{"v":0,"d":"0.00"}]
[7,"PVC plastični štitnici  1000x100 mm","kom",450,null,{"v":0,"d":"0.00"}]
[8,"PVC tvrda cev fi 100 mmx6m","m",45,null,{"v":0,"d":"0.00"}]
[9,"Traka Fe - Zn 25x4 mm","m",450,null,{"v":0,"d":"0.00"}]
[10,"Ukrsni komad SRPS N.B4.936","kom",60,null,{"v":0,"d":"0.00"}]
[11,"Osigurač FRA 16/10 A","kom",46,null,{"v":0,"d":"0.00"}]
[12,"Nabavka isporuka i ugradnja ormana javnog osvetljenja. Orman je od izolacionog materijala u zaštiti IP 65, orijentacionih dimenzija 400 x 600 x 200 mm postavljen u tehničkoj prostoriji sa ugrađenom sledećom opremom :"]
[null,"Fid zaštitna sklopka 25/0,5A\nAutomatski osigurač B tipa nazivne struje 6A kom 2 \nAutomatski osigurač  C tipa nazivne struje 16A kom  3 \nKontaktor 25A,  220V . \nDigitalni uklopnik DBV 2006 \ngrebenasti prekidač 1-0-2, 16A  1p , \nMaterijal potreban  za šemiranje ormana do njegove pune funkcionalnosti sa ispitivanjem \nKomplet povezan, montiran i pušten u rad orman RO JO ","kom",1,null,{"$f":"D19*E19","v":{"v":0,"d":"0.00"}}]
[13,"Potreban prateći sitan materijal","komp",1,null,{"$f":"D20*E20","v":{"v":0,"d":"0.00"}}]
[null,"UKUPNO ELEKTRO MATERIJAL"]
[{"$nulls":4},"SVEGA POD A:",{"$f":"SUM(F7:F21)","v":{"v":0,"d":"0.00"}}]
["B","GRADJEVINSKI MATERIJAL i GRAĐEVINSKI RADOVI "]
[1,"Ručni iskop zemlje III kategorije za prelaz preko puta na mestima postavljanja PVC cevi:-dimenzija 1,0m x  0,8  m                                                             ","m",45,null,{"$f":"D24*E24","v":{"v":0,"d":"0.00"}}]
[2,"Rucni iskop rova u zemlji III kategorije dimenzija 0,8mx0,4m","m",1220,null,{"$f":"D25*E25","v":{"v":0,"d":"0.00"}}]
[3,"Rucni iskop zemlje za temelje betonskih stubova dim 0.6x0.6x0.6 u zemlji III kategorije","kom",46,null,{"$f":"D26*E26","v":{"v":0,"d":"0.00"}}]
[4,"Betoniranje temelja za rasvetne nasadne stubove sa šalovanjem fiksiranjem otvora za stub i uvodnog PVC creva.Traka FeZn 25x4 prolazi kroz betonski temelj ","kom",46,null,{"$f":"D27*E27","v":{"v":0,"d":"0.00"}}]
[5,"Isporuka i nasipanje  kablovskog rova peskom u sloju 2x10 cm- izrada kablovske posteljice-.","m3",98,null,{"$f":"D28*E28","v":{"v":0,"d":"0.00"}}]
[6,"Postavljanje cevi:"]
[null,"tvrdih  PVC cevi fi 110 mm za prelaz preko ulice.","m",45,null,{"$f":"D30*E30","v":{"v":0,"d":"0.00"}}]
[7,"Polaganje PVC upozoravajuće trake","m",1230,null,{"$f":"D31*E31","v":{"v":0,"d":"0.00"}}]
[8,"Razvlačenje i polaganje PVC štitnika","m",1230,null,{"v":0,"d":"0.00"}]
[9,"Razvlačenje i polaganje pocinkovane trake  Fe Zn ","m",450,null,{"v":0,"d":"0.00"}]
["10","Kontrola nabijenosti materijala u kablovskom rovu. Najmanja nabijenost je 62 % (SRPS,U.B1.036). Ili najmanji modul stišljivosti 250 N/mm²(SRPS.U.B1.146).","kom.",{"v":2,"d":"2.0"},null,{"v":0,"d":"0.00"}]
["11","Ručni utovar zemlje preostale od iskopa u vozilo sa ručnim istovarom na deponiji.","m3",{"v":98,"d":"98.0"},null,{"v":0,"d":"0.00"}]
["12","Prevoz zemlje preostale od iskopa i lomljenog betona i asfalta do deponije, udaljenosti do 10km.","m3",{"v":98,"d":"98.0"},null,{"v":0,"d":"0.00"}]
["13","Geodetsko obeležavanje položaja stubova prema priloženim koordinatama  ","kom.",46,null,{"v":0,"d":"0.00"}]
["14","Geodetsko snimanje rova sa uplanjenjem ","m",1230,null,{"v":0,"d":"0.00"}]
[15,"Potreban prateći sitan materijal","komp",1,null,{"v":0,"d":"0.00"}]
[null,"UKUPNO GRADJEVINSKI MATERIJAL i RADOVI ",{"$nulls":3},{"$f":"SUM(F24:F39)","v":{"v":0,"d":"0.00"}}]
["C","ELEKTRO RADOVI"]
[1,"Demontaža i uklanjanje postojećih stubova javne rasvete i mašinsko odnošenje stubova i zapisnička predaja investitoru  ","kom",27,null,{"$f":"D42*E42","v":{"v":0,"d":"0.00"}}]
[2,"Raznošenje stubova duž trase sa podizanjem kandelaberskih stubova i fiksiranjem nasađivanjem stuba u prethodno pripremljen temelj","kom",46,null,{"$f":"D43*E43","v":{"v":0,"d":"0.00"}}]
[3,"Montaža ulične- parkovske  svetiljke  80W","kom",46,null,{"$f":"D44*E44","v":{"v":0,"d":"0.00"}}]
[4,"Uvođenje kabla u stub i otvaranje kabla PP00/A- 4x16mm2 sa izradom suve završnice.","kom",46,null,{"v":0,"d":"0.00"}]
[5,"Izrada veza na aralditnoj ploči i na svetiljkama zajedno sa Al Cu  papučicama - 8 komada po stubu ","kom",46,null,{"v":0,"d":"0.00"}]
[6,"Izrada natpisnih pločica i postavljanje na kablovske završetke.","kom",46,null,{"v":0,"d":"0.00"}]
[7,"Polaganje kabla PP00/A- 4x16mm2  u vec iskopan rov  sa postavljanjem stitnika i pozor trake na odgovarajucoj visini u odnosu na kabl.","m",1230,null,{"v":0,"d":"0.00"}]
[8,"Izrada  galvanske veze na stubu za javno osvetljenje sa uzemljivačem bakarnim užetom  16 mm2, prema grafičkom prilogu.","kom",46,null,{"v":0,"d":"0.00"}]
[9,"Provera zastite od indirektnog napona dodira i merenje otpora izolacije.","kom",1,null,{"v":0,"d":"0.00"}]
[null,"UKUPNO ELEKTRO RADOVI JR",{"$nulls":3},{"$f":"SUM(F42:F50)","v":{"v":0,"d":"0.00"}}]
[]
[null,"REKAPITULACIJA JAVNA RASVETA"]
["A","ELEKTRO MATERIJAL",{"$nulls":3},{"$f":"F22","v":{"v":0,"d":"0.00"}}]
["B","GRADJEVINSKI MATERIJAL I GRAĐEVINSKI RADOVI ",{"$nulls":3},{"$f":"F40","v":{"v":0,"d":"0.00"}}]
["C","ELEKTRO RADOVI JR",{"$nulls":3},{"$f":"F51","v":{"v":0,"d":"0.00"}}]
[null," UKUPNO JAVNA RASVETA  BEZ PDV - A",{"$nulls":3},{"$f":"SUM(F54:F56)","v":{"v":0,"d":"0.00"}}]
[]
["II","RADOVI NA IZRADI ELEKTROINSTALACIJA TEHNIČKE PROSTORIJE "]
["A","KABLOVI"]
[null,"Isporuka  i  ugradnja   kabla  za napajanje objekta, kabl je  tipa PP00-A  4x16 mm².  Kabl  se  polaže od ormana mernog mesta  PMM1 do GRO u tehničkoj prostoriji. Iskop rova za polaganje kabla dat u građevinskim radovima ","m",89,null,{"$f":"D61*E61","v":{"v":0,"d":"0.00"}}]
[null,"Isporuka  i  ugradnja  metalnog plastificiranog sapa creva unutrašnjeg prečnika fi 20 mm ","m",40,null,{"$f":"D62*E62","v":{"v":0,"d":"0.00"}}]
[null,"Isporuka  i  ugradnja  razvodne PVC kutije dimenzija 80x80 x50  u zaštiti IP65 ","kom",5,null,{"v":0,"d":"0.00"}]
[null,"Isporuka  i  ugradnja   PNK regala  dimenzija 100 x 50 mm sa priborom za postavljanje  ","met",25,null,{"v":0,"d":"0.00"}]
[null,"UKUPNO KABLOVI ",{"$nulls":3},{"$f":"SUM(F61:F64)","v":{"v":0,"d":"0.00"}}]
["B","INSTALACIJA UTIČNICA I RASVETE TEH. PROSTORIJE"]
[1,"Isporuka  i   ugradnja monofazne  utičnice veličine OG u zaštiti IP 54 za montažu na zid  ","kom.",5,null,{"$f":"D67*E67","v":{"v":0,"d":"0.00"}}]
[2,"Isporuka  i   ugradnja LED svetiljke snage 18W u zaštiti IP 65 boja svetla 4000K.  ","kom.",6,null,{"$f":"D68*E68","v":{"v":0,"d":"0.00"}}]
[null,"UKUPNO INSTALACIJA RASVETE I  UTIČNICA",{"$nulls":3},{"$f":"SUM(F67:F68)","v":{"v":0,"d":"0.00"}}]
["C","INSTALACIJA UZEMLJENJA "]
[1,"Nabavka isporuka i montaža pocinkovane trake 25 x4 mm za izradu  temeljnog uzemljivača tehnićke prostorije. Plaća se po dužnom metru položene trake . ","met",36,null,{"$f":"D71*E71","v":{"v":0,"d":"0.00"}}]
[2,"Isporuka i ugradnja ukrsnih komada ","kom",5,null,{"$f":"D72*E72","v":{"v":0,"d":"0.00"}}]
[3,"Nabavka isporuka i montaža pocinkovane trake 20 x3 mm  za izradu prstena za izjednačavaanje potencijala u tehničkoj prostoriji  na visini 0,5 metara od poda. U cenu uračunate i potpore za zid na rastojanju 1 metar. Plaća se po dužnom metru položene trake . ","met",20,null,{"v":0,"d":"0.00"}]
[4,"ŠIP ormarić nadgradni sa bakarnom  šinom 20 x3 mm","kom",1,null,{"v":0,"d":"0.00"}]
[5,"Povezivanje svih metalnih masa tehničke prostorije   na ŠIP  uzemljivač   provodnikom p/f 16 mm2 ","kompl.",1,null,{"v":0,"d":"0.00"}]
[null,"UKUPNO INSTALACIJA UZEMLJENJA",{"$nulls":3},{"$f":"SUM(F71:F75)","v":{"v":0,"d":"0.00"}}]
["D","MERENJA I ISPITIVANJA INSTALACIJA "]
[1,"Završna merenja i ispitivanja električnih i instalacija izjednačenja potencijala  njihova predaja investitoru.","kom.",1,null,{"$f":"D78*E78","v":{"v":0,"d":"0.00"}}]
[2,"Izrada  projekta izvedenog stanja sa svim izmenama .","kom.",1,null,{"$f":"D79*E79","v":{"v":0,"d":"0.00"}}]
[null,"UKUPNO MERENJA I ISPITIVANJA INSTALACIJA ",{"$nulls":3},{"$f":"SUM(F78:F79)","v":{"v":0,"d":"0.00"}}]
[]
[]
[null,"REKAPITULACIJA INSTALACIJA  TEHNIČKE PROSTORIJE"]
[null,"KABLOVI",{"$nulls":3},{"$f":"F65","v":0}]
[null,"INSTALACIJA   UTIČNICA  I RASVETE TEH. PROSTORIJE",{"$nulls":3},{"$f":"F69","v":0}]
[null,"INSTALACIJA UZEMLJENJA ",{"$nulls":3},{"$f":"F76","v":0}]
[null,"MERENJA I ISPITIVANJA INSTALACIJA ",{"$nulls":3},{"$f":"F80","v":{"v":0,"d":"0.00"}}]
[null,"UKUPNO  ELEKTROINSTALACIJA TEHNIČKE PROSTORIJE  ",{"$nulls":3},{"$f":"SUM(F84:F87)","v":0}]
[]
[]
[null,"ZBIRNA REKAPITULACIJA ELEKTRORADOVA  NA OBJEKTU "]
["I","RADOVI NA IZRADI JAVNE RASVETE",{"$nulls":3},{"$f":"F57","v":{"v":0,"d":"0.00"}}]
["II","ELEKTRORADOVI ZA TEHNIČKU PROSTORIJU",{"$nulls":3},{"$f":"F88","v":{"v":0,"d":"0.00"}}]
[null,"UKUPNO ( I + II ) BEZ PDV-a",{"$nulls":3},{"$f":"SUM(F92:F93)","v":0}]

{"sheet":"Spoljnouredjenje","index":6,"n_rows":187,"n_cols":8,"rows_kept":187,"merged":[[0,0,0,7],[1,0,1,7]]}
["9.5.3 ПРЕДМЕР РАДОВА И ПРЕДРАЧУН ТРОШКОВА \nСПОЉНОГ УРЕЂЕЊА - ПЕЈЗАЖНЕ АРХИТЕКТУРЕ"]
["Главашев парк на к.п. 3216 К.О. Смедеревска Паланка"]
["БР.ПОЗ.","ОПИС РАДОВА","Јед.\nМере","Количина","Цена\n(Eur)","ИЗНОС\n(Eur)","Јединична цена без ПДВ-а\n(РСД)","Укупна цена без ПДВ-а\n(РСД)"]
["01.000","ПРИПРЕМНИ РАДОВИ"]
["01.001","Пренос пројекта на терен - Позицијом је обухваћено обележавање трасе, сва геодетска мерења, тј. преношење података с пројекта на терен и обрнуто, осигурање и одржавање обележених ознака на терену за време грађења, односно до предаје радова Инвеститору. ",null,null,{"$f":"G5/118","v":{"v":0,"d":"0.00"}},{"$f":"E5*D5","v":{"v":0,"d":"0.00"}}]
[null,"Обрачун по m².","m²",{"v":5566,"d":"5,566.00"},{"v":0,"d":"0.00"},{"v":0,"d":"0.00"},null,{"$f":"D6*G6","v":{"v":0,"d":"0.00"}}]
["01.002","Осигуравање и обезбеђивање градилишта - Позицијом је обухваћена набавка, транспорт и постављање градилишне ограде у складу са  ПРАВИЛНИКОМ О САДРЖАЈУ ЕЛАБОРАТА О УРЕЂЕЊУ ГРАДИЛИШТА (\"Сл. гласник РС\", бр.4/2025) ",null,null,{"v":0,"d":"0.00"},{"v":0,"d":"0.00"}]
[null,"Обрачун по m'","m'","424",{"v":0,"d":"0.00"},{"v":0,"d":"0.00"},null,{"$f":"D8*G8","v":{"v":0,"d":"0.00"}}]
["01.003","Постављање градилишне табле - Позицијом је обухваћена израда, транспорт и постављање градилишне табле у складу са ПРАВИЛНИКОМ О ИЗГЛЕДУ, САДРЖИНИ И МЕСТУ ПОСТАВЉАЊА ГРАДИЛИШНЕ ТАБЛЕ (''Сл.гласник РС'', бр 97/2023).",null,null,{"v":0,"d":"0.00"},{"v":0,"d":"0.00"}]
[null,"Обрачун је по комаду. ","ком","1",{"v":0,"d":"0.00"},{"v":0,"d":"0.00"},null,{"$f":"D10*G10","v":{"v":0,"d":"0.00"}}]
["01.004","Постављање контејнера - позицијом је обухваћена набавка, транспорт и постављање градилишног контејнера.",null,null,{"v":0,"d":"0.00"},{"v":0,"d":"0.00"}]
[null,"Обрачун је по комаду. ","ком","1",{"v":0,"d":"0.00"},{"v":0,"d":"0.00"},null,{"$f":"D12*G12","v":{"v":0,"d":"0.00"}}]
["01.005","Постављање мобилног тоалета - позицијом је обухваћена набавка, транспорт и постављање мобилног тоалета за градилиште.",null,null,{"v":0,"d":"0.00"},{"v":0,"d":"0.00"}]
[null,"Обрачун је по комаду. ","ком","1",{"v":0,"d":"0.00"},{"v":0,"d":"0.00"},null,{"$f":"D14*G14","v":{"v":0,"d":"0.00"}}]
["01.006","Сеча стабала, утовар и одвоз на депонију",null,null,{"v":0,"d":"0.00"},{"v":0,"d":"0.00"}]
[null,"Обрачун је по комаду. ","ком","33",{"v":0,"d":"0.00"},{"v":0,"d":"0.00"},null,{"$f":"D16*G16","v":{"v":0,"d":"0.00"}}]
["01.007","Машинско вађење пањева, утовар и одвоз на депонију",null,null,{"v":0,"d":"0.00"},{"v":0,"d":"0.00"}]
[null,"Обрачун је по комаду. ","ком","66",{"v":0,"d":"0.00"},{"v":0,"d":"0.00"},null,{"$f":"D18*G18","v":{"v":0,"d":"0.00"}}]
["01.008","Сеча сувих грана и формирање крошње, утовар грана и одвоз на депонију",null,null,{"v":0,"d":"0.00"},{"v":0,"d":"0.00"}]
[null,"Обрачун је по m³. ","m³","36",{"v":0,"d":"0.00"},{"v":0,"d":"0.00"},null,{"$f":"D20*G20","v":{"v":0,"d":"0.00"}}]
["01.000","ПРИПРЕМНИ РАДОВИ",{"$nulls":3},{"$f":"SUM(F5:F8)","v":{"v":0,"d":"0.00"}},null,{"$f":"SUM(H5:H20)","v":{"v":0,"d":"0.00"}}]
[]
["02.000","ЗЕМЉАНИ РАДОВИ"]
[]
["02.001","СКИДАЊЕ ПОВРШИНСКОГ СТЕРИЛНОГ СЛОЈА ЗЕМЉЕ"]
[null,"Машинско скидање постојеће стерилне земље и шута на свим површинама које се озелењавају, у слоју од 10 cm дебљине, утовар и одвоз на депонију до 15 km  удаљености. "]
[null,"Обрачун по m³","m³",{"v":559,"d":"559.00"},{"v":10,"d":"10.00"},{"$f":"E27*D27","v":{"v":5590,"d":"5,590.00"}},null,{"$f":"+D27*G27","v":{"v":0,"d":"0.00"}}]
["02.002","ХУМУСИРАЊЕ"]
[null,"Набавка, транспорт и уградња хумусне земље за хумизирање површина за садњу у слоју d=10 cm. Фино планирање земље +/-2 cm."]
[null,"Обрачун по m³","m³",{"v":670,"d":"670.00"},{"v":20,"d":"20.00"},{"$f":"E30*D30","v":{"v":13400,"d":"13,400.00"}},null,{"$f":"+D30*G30","v":{"v":0,"d":"0.00"}}]
["02.003","ИСПУНА ЖАРДИЊЕРА"]
[null,"Набавка, транспорт и уградња хумусне земље у жардињере у слоју d=35 cm."]
[null,"Обрачун по m³","m³",{"v":15.5,"d":"15.50"},{"v":20,"d":"20.00"},{"$f":"E33*D33","v":{"v":310,"d":"310.00"}},null,{"$f":"+D33*G33","v":{"v":0,"d":"0.00"}}]
["02.000","ЗЕМЉАНИ РАДОВИ",{"$nulls":3},{"$f":"SUM(F24:F30)","v":{"v":18990,"d":"18,990.00"}},null,{"$f":"SUM(H24:H33)","v":{"v":0,"d":"0.00"}}]
[]
["03.000","ОСТАЛИ МАТЕРИЈАЛИ И РАДОВИ"]
["03.001","Набавка, транспорт и уградња сивог декоративног шљунка \n(ø 4-8 mm, d=5 cm) са носивим слојем од дробљеног каменог агрегата   0-32 mm (у два слоја од 15 cm), и нивелационим слојем од песка d = 5 cm на површинама предвиђеним за сет за шах."]
[null,"Обрачун по  m², комплет","m²",{"v":45,"d":"45.00"},{"$f":"G38/118","v":{"v":0,"d":"0.00"}},{"$f":"E38*D38","v":{"v":0,"d":"0.00"}},null,{"$f":"+D38*G38","v":{"v":0,"d":"0.00"}}]
["03.002","Набавка, транспорт и распростирање малча у дебљини d=10 cm."]
[null,"Обрачун по m²","m²",{"v":60,"d":"60.00"},{"$f":"G40/118","v":{"v":0,"d":"0.00"}},{"$f":"E40*D40","v":{"v":0,"d":"0.00"}},null,{"$f":"+D40*G40","v":{"v":0,"d":"0.00"}}]
["03.003","Уградња граничника"]
[null,"Набавка, транспорт и постављање бордуре - граничника \"Linefix\" \n(HD-PЕ) h= 17,5 cm са \"Hauraton\" (HD-PЕ) анкерима L= 28 cm. \nГраничници се постављају између застора од малча и травњака, застора од декоративног шљунка и и травњака и застора од гумених плоча и травњака. "]
[null,"Обрачун по  m', комплет","m'",{"v":160,"d":"160.00"},{"v":5,"d":"5.00"},{"$f":"E43*D43","v":{"v":800,"d":"800.00"}},null,{"$f":"+D43*G43","v":{"v":0,"d":"0.00"}}]
["03.004","Набавка, транспорт и ручна уградња насипа од песка за застор од гумене подлоге, d=30cm Ms<30 MPa у збијеном стању."]
[null,"Обрачун по  m³, комплет","m³",{"v":33,"d":"33.00"},{"$f":"G45/118","v":{"v":0,"d":"0.00"}},{"$f":"E45*D45","v":{"v":0,"d":"0.00"}},null,{"$f":"+D45*G45","v":{"v":0,"d":"0.00"}}]
["03.005","Набавка, транспорт и ручна уградња тампона од дробљеног каменог агрегата за застор од гумене подлоге 0-63mm d=20cm. Мs=50МPа."]
[null,"Обрачун по  m³, комплет","m³",{"v":23,"d":"23.00"},{"$f":"G47/118","v":{"v":0,"d":"0.00"}},{"$f":"E47*D47","v":{"v":0,"d":"0.00"}},null,{"$f":"+D47*G47","v":{"v":0,"d":"0.00"}}]
["03.006","Набавка, транспорт и ручна уградња тампона од дробљеног каменог агрегата за застор од гумене подлоге 0-31,5mm d=10cm, са набавком и превозом Мs=60МPа."]
[null,"Обрачун по  m³, комплет","m³",{"v":12,"d":"12.00"},{"$f":"G49/118","v":{"v":0,"d":"0.00"}},{"$f":"E49*D49","v":{"v":0,"d":"0.00"}},null,{"$f":"+D49*G49","v":{"v":0,"d":"0.00"}}]
["03.007","Набавка, транспорт и уградња армираног бетона МБ-20 у слоју d=10 cm, ливено у кампадама са остављањем дилетација. Арматура: мрежа Q-188.\nОбрачун по m³"]
[null,"Обрачун по  m², комплет","m³",{"v":12,"d":"12.00"},{"$f":"G51/118","v":{"v":0,"d":"0.00"}},{"$f":"E51*D51","v":{"v":0,"d":"0.00"}},null,{"$f":"+D51*G51","v":{"v":0,"d":"0.00"}}]
["03.008","Набавка, транспорт и уградња плоча од млевене гуме, дим. 50x50x5cm, на подлогу од арм. бетона МБ-20 (d=10cm). Боја плоча зелена. "]
[null,"Обрачун по  m², комплет","m²",{"v":110,"d":"110.00"},{"$f":"G53/118","v":{"v":0,"d":"0.00"}},{"$f":"E53*D53","v":{"v":0,"d":"0.00"}},null,{"$f":"+D53*G53","v":{"v":0,"d":"0.00"}}]
["03.009","Анкери"]
[null,"Набавка, транспорт и уградња дрвених анкера који  се побијају  у  земљу  и  за  њих  се  везује  садница  како  се не  би  померала. Пречник анкера мора бити мин. 6цм или ако су у питању четвороугаони облици, димензија анкера треба да буде минимум 5x5cm, укупне дужине 2,5- 3,0 m. Везују се укрштеним гуртнама (тракама ширине око 5cm), за дебло које се претходно заштити гуменом обујмницом. За сваку нову лишћарску садницу користе се по два, а за четинарску по 3 анкера које је потребно лепо обрадити и премазати заштитним средством за дрво.\n(59 х 2) + (40 х 3) = 238"]
[null,"Обрачун по комаду","ком",{"v":238,"d":"238.00"},{"v":9,"d":"9.00"},{"$f":"E56*D56","v":{"v":2142,"d":"2,142.00"}},null,{"$f":"+D56*G56","v":{"v":0,"d":"0.00"}}]
["03.010","Лапидаријум"]
[null,"Груписање и премештање постојећег лапидаријума на површину под травњаком П10."]
[null,"Обрачун је паушално","пауш.",{"v":1,"d":"1.00"},{"v":9,"d":"9.00"},{"$f":"E59*D59","v":{"v":9,"d":"9.00"}},null,{"$f":"+D59*G59","v":{"v":0,"d":"0.00"}}]
["03.000",{"$f":"B36","v":"ОСТАЛИ МАТЕРИЈАЛИ И РАДОВИ"},{"$nulls":5},{"$f":"SUM(H37:H59)","v":{"v":0,"d":"0.00"}}]
[]
["04.000","САДЊА САДНИЦА"]
["04.001","ВИСОКИ И КАЛЕМЉЕНИ ЛИШЋАРИ"]
[null,"Набавка, транспорт, садња садница високих и калемљених лишчара. Садњу обавити у свему према важећим нормативима за ту врсту посла. Обрачун по ком."]
["1","Quercus rubra, Обим дебла 18/20 cm; висина > 3,0 m"]
[null,null,"ком",{"v":3,"d":"3.00"},{"v":350,"d":"350.00"},{"$f":"E66*D66","v":{"v":1050,"d":"1,050.00"}},null,{"$f":"+D66*G66","v":{"v":0,"d":"0.00"}}]
["2","Aesculus hippocastanum, Обим дебла18/20 cm; висина > 3,0 m"]
[null,null,"ком",{"v":2,"d":"2.00"},{"v":250,"d":"250.00"},{"$f":"E68*D68","v":{"v":500,"d":"500.00"}},null,{"$f":"+D68*G68","v":{"v":0,"d":"0.00"}}]
["3","Liqudambar styraciflua, Обим дебла 18/20cm; висина > 3,0 m"]
[null,null,"ком",{"v":8,"d":"8.00"},{"v":400,"d":"400.00"},{"$f":"E70*D70","v":{"v":3200,"d":"3,200.00"}},null,{"$f":"+D70*G70","v":{"v":0,"d":"0.00"}}]
["4","Tilia cordata, Обим дебла 18/20 cm; висина > 3,0 m"]
[null,null,"ком",{"v":4,"d":"4.00"},{"v":400,"d":"400.00"},{"$f":"E72*D72","v":{"v":1600,"d":"1,600.00"}},null,{"$f":"+D72*G72","v":{"v":0,"d":"0.00"}}]
["5","Betula alba multi-stemmed, Висина > 4,0 m"]
[null,null,"ком",{"v":9,"d":"9.00"},{"v":300,"d":"300.00"},{"$f":"E74*D74","v":{"v":2700,"d":"2,700.00"}},null,{"$f":"+D74*G74","v":{"v":0,"d":"0.00"}}]
["6","Ginkgo biloba, Обим дебла18/20 cm; висина > 3,0 m"]
[null,null,"ком",{"v":6,"d":"6.00"},{"v":250,"d":"250.00"},{"$f":"E76*D76","v":{"v":1500,"d":"1,500.00"}},null,{"$f":"+D76*G76","v":{"v":0,"d":"0.00"}}]
["7","Prunus cerasifera 'Pissardii', Обим дебла 18/20 cm; висина > 3,0 m"]
[null,null,"ком",{"v":9,"d":"9.00"},{"v":400,"d":"400.00"},{"$f":"E78*D78","v":{"v":3600,"d":"3,600.00"}},null,{"$f":"+D78*G78","v":{"v":0,"d":"0.00"}}]
["8","Prunus serrulata 'Kanzan', Обим дебла 18/20 cm; висина > 3,0 m"]
[null,null,"ком",{"v":5,"d":"5.00"},{"v":250,"d":"250.00"},{"$f":"E80*D80","v":{"v":1250,"d":"1,250.00"}},null,{"$f":"+D80*G80","v":{"v":0,"d":"0.00"}}]
["9","Cercis siliquastrum, Висина > 3,0 m"]
[null,null,"ком",{"v":5,"d":"5.00"},{"v":300,"d":"300.00"},{"$f":"E82*D82","v":{"v":1500,"d":"1,500.00"}},null,{"$f":"+D82*G82","v":{"v":0,"d":"0.00"}}]
["10","Albizia julibrissin, Обим дебла 14/16 cm; висина > 3,0 m"]
[null,null,"ком",{"v":2,"d":"2.00"},{"v":300,"d":"300.00"},{"$f":"E84*D84","v":{"v":600,"d":"600.00"}},null,{"$f":"+D84*G84","v":{"v":0,"d":"0.00"}}]
["11","Magnolia grandiflora, Обим дебла 14/16 cm; висина > 3,0 m"]
[null,null,"ком",{"v":6,"d":"6.00"},{"v":300,"d":"300.00"},{"$f":"E86*D86","v":{"v":1800,"d":"1,800.00"}},null,{"$f":"+D86*G86","v":{"v":0,"d":"0.00"}}]
["04.002","ЧЕТИНАРСКО ДРВЕЋЕ"]
[null,"Набавка, транспорт, садња садница декоративних четинара. Садњу обавити у свему према важећим нормативима за ту врсту посла. Обрачун по ком."]
["12","Cedrus atlantica, Висина > 3,0 m"]
[null,null,"ком",{"v":10,"d":"10.00"},{"v":150,"d":"150.00"},{"$f":"E90*D90","v":{"v":1500,"d":"1,500.00"}},null,{"$f":"+D90*G90","v":{"v":0,"d":"0.00"}}]
["13","Picea pungens 'Glauca', Висина > 2,0 m"]
[null,null,"ком",{"v":10,"d":"10.00"},{"v":150,"d":"150.00"},{"$f":"E92*D92","v":{"v":1500,"d":"1,500.00"}},null,{"$f":"+D92*G92","v":{"v":0,"d":"0.00"}}]
["14","Pinus nigra, Обим дебла 18/20 cm; Висина > 3,0 m"]
[null,null,"ком",{"v":14,"d":"14.00"},{"v":150,"d":"150.00"},{"$f":"E94*D94","v":{"v":2100,"d":"2,100.00"}},null,{"$f":"+D94*G94","v":{"v":0,"d":"0.00"}}]
["15"," Pinus wallichiana, Висина > 3,0 m"]
[null,null,"ком",{"v":6,"d":"6.00"},{"v":150,"d":"150.00"},{"$f":"E96*D96","v":{"v":900,"d":"900.00"}},null,{"$f":"+D96*G96","v":{"v":0,"d":"0.00"}}]
["04.003","ЖИВА ОГРАДА"]
[null,"Набавка, транспорт и садња садница живе ограде. Садњу обавити у свему према важежим нормативима за ту врсту посла. Обрачун по ком. "]
[]
["16","Prunus laurocerasus, Висина 130/150 cm, норматив садње 3 ком/m'"]
[null,null,"ком",{"v":135,"d":"135.00"},{"v":4,"d":"4.00"},{"$f":"E101*D101","v":{"v":540,"d":"540.00"}},null,{"$f":"+D101*G101","v":{"v":0,"d":"0.00"}}]
["04.004","ЖБУЊЕ"]
[null,"Садња жбуња. Позиција обухвата набавку, транспорт и садњу по општим условима за извођење ове врсте радова. Обрачун по ком. "]
["17","Lonicera nitida, Висина > 20cm, норматив садње 9 ком/m²"]
[null,null,"ком",{"v":164,"d":"164.00"},{"v":45,"d":"45.00"},{"$f":"E105*D105","v":{"v":7380,"d":"7,380.00"}},null,{"$f":"+D105*G105","v":{"v":0,"d":"0.00"}}]
["18","Thuja occidentalis 'Danica', Висина > 20 cm, норматив садње 5 ком/m²"]
[null,null,"ком",{"v":35,"d":"35.00"},{"v":150,"d":"150.00"},{"$f":"E107*D107","v":{"v":5250,"d":"5,250.00"}},null,{"$f":"+D107*G107","v":{"v":0,"d":"0.00"}}]
["04.005","ПЕРЕНЕ И УКРАСНЕ ТРАВЕ"]
[null,"Набавка, транспорт и садња садница перена и украсних трава. Садњу обавити у свему према важећим нормативима за ту врсту посла. Обрачун по ком. "]
["19","Lavandula officinalis, Висина 15/20 cm, норматив садње 6 кoм/m²"]
[null,null,"ком",{"v":150,"d":"150.00"},{"v":6,"d":"6.00"},{"$f":"E111*D111","v":{"v":900,"d":"900.00"}},null,{"$f":"+D111*G111","v":{"v":0,"d":"0.00"}}]
["20","Pennisetum alopecuroides, Висина 15/20 cm, норматив садње 5 ком/m²"]
[null,null,"ком",{"v":35,"d":"35.00"},{"v":6,"d":"6.00"},{"$f":"E113*D113","v":{"v":210,"d":"210.00"}},null,{"$f":"+D113*G113","v":{"v":0,"d":"0.00"}}]
["04.000",{"$f":"+B62","v":"САДЊА САДНИЦА"},{"$nulls":3},{"$f":"SUM(F63:F113)","v":{"v":39580,"d":"39,580.00"}},null,{"$f":"SUM(H63:H113)","v":{"v":0,"d":"0.00"}}]
[]
["05.000","ПОДИЗАЊЕ ТРАВЊАКА"]
["05.001","ЗАСНИВАЊЕ ТРАЊАКА СЕТВОМ СЕМЕНА"]
[null,"Набавка семена и заснивање ојачаног травњака за сенку са ротофрезирањем, грубим и финим планирањем, ваљањем и првим заливањем"]
[null,"Обрачун по m² , комплет ","m²",{"v":5531,"d":"5,531.00"},{"v":6,"d":"6.00"},{"$f":"E119*D119","v":{"v":33186,"d":"33,186.00"}},null,{"$f":"+D119*G119","v":{"v":0,"d":"0.00"}}]
["05.000",{"$f":"B116","v":"ПОДИЗАЊЕ ТРАВЊАКА"},{"$nulls":3},{"$f":"SUM(F117:F119)","v":{"v":33186,"d":"33,186.00"}},null,{"$f":"SUM(H117:H119)","v":{"v":0,"d":"0.00"}}]
[]
["06.000","СОФТВЕР ЗА УПРАВЉАЊЕ ЗЕЛЕНИМ ПОВРШИНАМА"]
["06.001","Двогодишња лиценца за софтверску платформу са подршком произвођача - основни пакет\n\n- Дигитална мапа јавне зелене површине и парка\n- Модул за управљање активностима\nодржавања\n- Модул за прикупљање података кроз\nсензоре о влажности земљишта и\nметеоролошких услова на микролокалитету\n- Омогућен приступ подацима у било ком тренутку и слуга хостинга платформе","ком",{"v":1,"d":"1.00"},{"$nulls":3},{"$f":"D123*G123","v":{"v":0,"d":"0.00"}}]
["06.002","Апликација за комуникацију са грађанством","ком",{"v":1,"d":"1.00"},{"$nulls":3},{"$f":"D124*G124","v":{"v":0,"d":"0.00"}}]
["06.003","Услуга имплементација и почетно подешавање софтверске платформе и апликације\n- Иницијално подешавање платформе\n- Пословна анализа корисничких процеса\n- Унос радника, радних машина, парцела и\nрадних операција","ком",{"v":1,"d":"1.00"},{"$nulls":3},{"$f":"D125*G125","v":{"v":0,"d":"0.00"}}]
["06.004","Метео сензори и станица \n1. Метео станица произвођача Пессл инструментс нМетос 200\n\n- Метеоролошки сензор за прикупљање\nподатака о метеоролошким условима\n(количина кише, температура и релативна\nвлажност, влажност земљишта...)\n- Соларни панел са носачем за напајање\nметеостанице\n- Комуникациони модул НБ-лоТ/ГПРС са опцијом комуникације преко СИМ картице\n- стуб за монтажу метео станице са свим\nграђевинским радовима","ком",{"v":1,"d":"1.00"},{"$nulls":3},{"$f":"D126*G126","v":{"v":0,"d":"0.00"}}]
["06.000","УКУПНО СОФТВЕР ЗА УПРАВЉАЊЕ ЗЕЛ. ПОВРШИНАМА",null,null,{"$f":"F109+F115","v":{"v":0,"d":"0.00"}},{"$f":"E127*D127","v":{"v":0,"d":"0.00"}},null,{"$f":"SUM(H123:H126)","v":{"v":0,"d":"0.00"}}]
[]
["07.000","УРБАНИ РЕПЕР - ИНФОРМАЦИОНА ПИРАМИДА"]
["07.001","Израда, транспорт и монтажа урбаног репера - информационе пирамиде. Пирамида заобљеног врха је од вибрираног бетона са ситним агрегатом у алуминијумској или некој другој глаткој оплати. Слова и бројеви на пирамиди као и кугла са грбом града на врху пирамиде су од бакарног месинга."]
[null,"Обрачун по комаду, комплет.","ком",{"v":1,"d":"1.00"},{"$nulls":3},{"$f":"+D131*G131","v":{"v":0,"d":"0.00"}}]
["07.000","УРБАНИ РЕПЕР - ИНФОРМАЦИОНА ПИРАМИДА",null,null,{"$f":"F114+F120","v":{"v":72766,"d":"72,766.00"}},{"$f":"E132*D132","v":{"v":0,"d":"0.00"}},null,{"$f":"H131","v":{"v":0,"d":"0.00"}}]
[]
["08.000","УРБАНА ОПРЕМА"]
["08.001","ДРВЕНА КЛУПА СА НАСЛОНОМ\nНабавка, транспорт и уградња клупе са наслоном. Према каталогу урбане опреме или слична.",null,null,{"$f":"G135/118","v":{"v":0,"d":"0.00"}},{"$f":"E135*D135","v":{"v":0,"d":"0.00"}}]
[null,"Обрачун по комаду.","ком",{"v":28,"d":"28.00"},{"$f":"G136/118","v":{"v":0,"d":"0.00"}},{"$f":"E136*D136","v":{"v":0,"d":"0.00"}},null,{"$f":"+D136*G136","v":{"v":0,"d":"0.00"}}]
["08.002","ДРВЕНА КЛУПА БЕЗ НАСЛОНА\nНабавка, транспорт и уградња клупе без наслона. Према каталогу урбане опреме или слична.",null,null,{"$f":"G137/118","v":{"v":0,"d":"0.00"}},{"$f":"E137*D137","v":{"v":0,"d":"0.00"}}]
[null,"Обрачун по комаду.","ком",{"v":7,"d":"7.00"},{"$nulls":3},{"$f":"+D138*G138","v":{"v":0,"d":"0.00"}}]
["08.003","СОЛАРНА КЛУПА СА СО2 КАЛКУЛАТОРОМ\nНабавка, транспорт и уградња клупе, минималне снаге 100 -150 W. Према каталогу урбане опреме или слична.",null,null,{"$f":"G139/118","v":{"v":0,"d":"0.00"}},{"$f":"E139*D139","v":{"v":0,"d":"0.00"}}]
[null,"Обрачун по комаду.","ком",{"v":2,"d":"2.00"},{"$nulls":3},{"$f":"+D140*G140","v":{"v":0,"d":"0.00"}}]
["08.004","КОРПА ЗА ОТПАТКЕ ЗА МЕШОВИТИ ОТПАД\nНабавка, транспорт и уградња корпе за мешовити отпад. Према каталогу урбаног мобилијара или слична.",null,null,{"v":600,"d":"600.00"},{"$f":"E141*D141","v":{"v":0,"d":"0.00"}}]
[null,"Обрачун по комаду.","ком","15",{"v":600,"d":"600.00"},{"v":9000,"d":"9,000.00"},null,{"$f":"D142*G142","v":{"v":0,"d":"0.00"}}]
["08.005","КОРПА ЗА ОТПАТКЕ СА СОРТИРАЊЕМ ЗА РЕЦИКЛАЖУ\nНабавка, транспорт и уградња корпе за отпатке са сортирањем отпада. Према каталогу урбаног мобилијара или слична.",null,null,{"v":600,"d":"600.00"},{"v":0,"d":"0.00"}]
[null,"Обрачун по комаду.","ком","2",{"v":600,"d":"600.00"},{"v":1200,"d":"1,200.00"},null,{"$f":"D144*G144","v":{"v":0,"d":"0.00"}}]
["08.006","СЕТ ЗА ШАХ\nНабавка, транспорт и уградња сета за шах. Према каталогу урбаног мобилијара или сличан.",null,null,{"$f":"G145/118","v":{"v":0,"d":"0.00"}},{"v":0,"d":"0.00"}]
[null,"Обрачун по комаду, комплет.","ком",{"v":2,"d":"2.00"},{"$f":"G146/118","v":{"v":0,"d":"0.00"}},{"v":0,"d":"0.00"},null,{"$f":"+D146*G146","v":{"v":0,"d":"0.00"}}]
["08.007","СТАЛАК ЗА ПАРКИРАЊЕ БИЦИКЛИ\nНабавка, транспорт и уградња држача за бицикле. Према каталогу урбаног мобилијара или сличан.",null,null,{"v":600,"d":"600.00"},{"v":0,"d":"0.00"}]
[null,"Обрачун по комаду.","ком","1",{"v":600,"d":"600.00"},{"v":600,"d":"600.00"},null,{"$f":"D148*G148","v":{"v":0,"d":"0.00"}}]
["08.008","ЧЕСМА\nНабавка, транспорт и уградња чесме за воду. Према каталогу урбаног мобилијара или слична.",null,null,{"$f":"G149/118","v":{"v":0,"d":"0.00"}},{"v":0,"d":"0.00"}]
[null,"Обрачун по комаду","ком",{"v":3,"d":"3.00"},{"$f":"G150/118","v":{"v":0,"d":"0.00"}},{"v":0,"d":"0.00"},null,{"$f":"+D150*G150","v":{"v":0,"d":"0.00"}}]
["08.009","ДЕКОРАТИВНА ЧЕЛИЧНА ОГРАДА\nНабавка, транспорт и уградња декоративне челичне ограде уз Главашеву улицу, на постојећи камени зидић. Према каталогу урбаног мобилијара или слична.",null,null,{"$f":"G151/118","v":{"v":0,"d":"0.00"}},{"v":0,"d":"0.00"}]
[null,"Обрачун по m' .","m'",{"v":140,"d":"140.00"},{"v":600,"d":"600.00"},{"v":84000,"d":"84,000.00"},null,{"$f":"D152*G152","v":{"v":0,"d":"0.00"}}]
["08.010","ОГРАДА ОКО ДЕЧИЈЕГ ИГРАЛИШТА\nНабавка, транспорт и уградња ограде око дечијег игралишта,у свему по правилнику о безбедности дечијих игралишта.",null,null,{"$f":"G153/118","v":{"v":0,"d":"0.00"}},{"v":0,"d":"0.00"}]
[null,"Обрачун по m' .","m'",{"v":50,"d":"50.00"},{"v":600,"d":"600.00"},{"v":30000,"d":"30,000.00"},null,{"$f":"D154*G154","v":{"v":0,"d":"0.00"}}]
["08.011","ИНФОРМАТИВНА ТАБЛА ДЕЧИЈЕГ ИГРАЛИШТА\nНабавка, транспорт и уградња инфотабле у оквиру дечијег игралишта,у свему по правилнику о безбедности дечијих игралишта. ",null,null,{"$f":"G155/118","v":{"v":0,"d":"0.00"}},{"v":0,"d":"0.00"}]
[null,"Обрачун по комаду.","ком",{"v":1,"d":"1.00"},{"v":600,"d":"600.00"},{"v":600,"d":"600.00"},null,{"$f":"D156*G156","v":{"v":0,"d":"0.00"}}]
["08.012","ЖАРДИЊЕРА БЕЗ ДНА"]
[null,"Набавка материјала и израда жардињера од Ytong блокова:\n- за темељ зидова жардињере израдити бетонску плочу d = 10 cm са слојем хидроизолације\n- унутрашње стране жардињере премазати са 2 слоја цементне хидроизолације\n- на дну жардињере поставити слој шљунка d = 10  и геотекстил\n- као завршну обраду преко Ytong блокова нанети микроцемент\n- део за седење у дужини од 150 cm од летвица термотретираног јасена (5 x 3 cm), поставити анкеровањем на хоризонтални део зида"]
[null,"Обрачун по комаду, комплет","ком",{"v":4,"d":"4.00"},{"$f":"G159/118","v":{"v":0,"d":"0.00"}},{"$f":"E159*D159","v":{"v":0,"d":"0.00"}},null,{"$f":"+D159*G159","v":{"v":0,"d":"0.00"}}]
[]
["08.000",{"$f":"+B134","v":"УРБАНА ОПРЕМА"},{"$nulls":3},{"$f":"SUM(F141:F155)","v":{"v":124800,"d":"124,800.00"}},null,{"$f":"SUM(H135:H160)","v":{"v":0,"d":"0.00"}}]
[]
["09.000","TЕРЕТАНА НА ОТВОРЕНОМ "]
["09.001","ФИТНЕС СПРАВА - КАРДИО\nНабавка, транспорт и уградња справе за фитнес - кардио.\nПрема каталогу урбане опреме или слична.",null,null,{"$f":"G164/118","v":{"v":0,"d":"0.00"}},{"$f":"E164*D164","v":{"v":0,"d":"0.00"}}]
[null,"Обрачун по комаду.","ком",{"v":1,"d":"1.00"},{"$f":"G165/118","v":{"v":0,"d":"0.00"}},{"$f":"E165*D165","v":{"v":0,"d":"0.00"}},null,{"$f":"+D165*G165","v":{"v":0,"d":"0.00"}}]
["09.002","ФИТНЕС СПРАВА - КЛУПА ЗА ТРБУШЊАКЕ\nНабавка, транспорт и уградња справе за фитнес - клупа за трбушњаке. Према каталогу урбане опреме или слична.",null,null,{"$f":"G166/118","v":{"v":0,"d":"0.00"}},{"$f":"E166*D166","v":{"v":0,"d":"0.00"}}]
[null,"Обрачун по комаду.","ком",{"v":1,"d":"1.00"},{"$nulls":3},{"$f":"+D167*G167","v":{"v":0,"d":"0.00"}}]
["09.003","ФИТНЕС СПРАВА - ЛАТ МАШИНА\nНабавка, транспорт и уградња справе за фитнес - ЛАТ машина. \nПрема каталогу урбане опреме или слична.",null,null,{"$f":"G168/118","v":{"v":0,"d":"0.00"}},{"$f":"E168*D168","v":{"v":0,"d":"0.00"}}]
[null,"Обрачун по комаду.","ком",{"v":1,"d":"1.00"},{"$nulls":3},{"$f":"+D169*G169","v":{"v":0,"d":"0.00"}}]
["09.004","ФИТНЕС СПРАВА - ХОРИЗОНТАЛНЕ МЕРДЕВИНЕ\nНабавка, транспорт и уградња справе за фитнес - хоризонталне мердевине. \nПрема каталогу урбане опреме или слична.",null,null,{"v":600,"d":"600.00"},{"$f":"E170*D170","v":{"v":0,"d":"0.00"}}]
[null,"Обрачун по комаду, комплет","ком",{"v":1,"d":"1.00"},{"$f":"G171/118","v":{"v":0,"d":"0.00"}},{"$f":"E171*D171","v":{"v":0,"d":"0.00"}},null,{"$f":"+D171*G171","v":{"v":0,"d":"0.00"}}]
["09.005","КАВЕЗ СА ИНТЕРАКТИВНОМ ИГРОМ НА ОТВОРЕНОМ (FREE CAGE - TIC TAC TOE)\nНабавка, транспорт и монтажа кавеза за покретним елементима за игру. \nПрема каталогу урбане опреме или слична.",null,null,{"v":600,"d":"600.00"},{"$f":"E172*D172","v":{"v":0,"d":"0.00"}}]
[null,"Обрачун по комаду, комплет","ком",{"v":1,"d":"1.00"},{"$f":"G173/118","v":{"v":0,"d":"0.00"}},{"$f":"E173*D173","v":{"v":0,"d":"0.00"}},null,{"$f":"+D173*G173","v":{"v":0,"d":"0.00"}}]
[]
["09.000",{"$f":"+B163","v":"TЕРЕТАНА НА ОТВОРЕНОМ "},{"$nulls":3},{"$f":"SUM(F153:F167)","v":{"v":155400,"d":"155,400.00"}},null,{"$f":"SUM(H165:H174)","v":{"v":0,"d":"0.00"}}]
[]
[null,"РЕКАПИТУЛАЦИЈА"]
["01.000",{"$f":"+B4","v":"ПРИПРЕМНИ РАДОВИ"},{"$nulls":3},{"$f":"+F21","v":{"v":0,"d":"0.00"}},null,{"$f":"H21","v":{"v":0,"d":"0.00"}}]
["02.000",{"$f":"+B23","v":"ЗЕМЉАНИ РАДОВИ"},{"$nulls":3},{"$f":"F34","v":{"v":18990,"d":"18,990.00"}},null,{"$f":"H34","v":{"v":0,"d":"0.00"}}]
["03.000",{"$f":"B36","v":"ОСТАЛИ МАТЕРИЈАЛИ И РАДОВИ"},{"$nulls":3},{"$f":"#REF!","v":{"$error":"#REF!"}},null,{"$f":"H60","v":{"v":0,"d":"0.00"}}]
["04.000",{"$f":"B114","v":"САДЊА САДНИЦА"},{"$nulls":3},{"$f":"#REF!","v":{"$error":"#REF!"}},null,{"$f":"H114","v":{"v":0,"d":"0.00"}}]
["05.000",{"$f":"B120","v":"ПОДИЗАЊЕ ТРАВЊАКА"},{"$nulls":3},{"$f":"+F161","v":{"v":124800,"d":"124,800.00"}},null,{"$f":"H120","v":{"v":0,"d":"0.00"}}]
["06.000",{"$f":"B122","v":"СОФТВЕР ЗА УПРАВЉАЊЕ ЗЕЛЕНИМ ПОВРШИНАМА"},{"$nulls":3},{"$f":"#REF!","v":{"$error":"#REF!"}},null,{"$f":"H127","v":{"v":0,"d":"0.00"}}]
["07.000",{"$f":"B132","v":"УРБАНИ РЕПЕР - ИНФОРМАЦИОНА ПИРАМИДА"},{"$nulls":3},{"$f":"#REF!","v":{"$error":"#REF!"}},null,{"$f":"H132","v":{"v":0,"d":"0.00"}}]
["08.000",{"$f":"B134","v":"УРБАНА ОПРЕМА"},{"$nulls":3},{"$f":"#REF!","v":{"$error":"#REF!"}},null,{"$f":"H161","v":{"v":0,"d":"0.00"}}]
["09.000",{"$f":"B163","v":"TЕРЕТАНА НА ОТВОРЕНОМ "},{"$nulls":3},{"$f":"#REF!","v":{"$error":"#REF!"}},null,{"$f":"H175","v":{"v":0,"d":"0.00"}}]
[null,"УКУПНО (без ПДВ-а)",{"$nulls":5},{"$f":"SUBTOTAL(9,H178:H186)","v":{"v":0,"d":"0.00"}}]

{"sheet":"rekapitulacija svega","index":7,"n_rows":14,"n_cols":8,"rows_kept":14,"merged":[[0,0,0,7],[2,1,2,6],[3,1,3,6],[4,1,4,6],[5,1,5,6],[6,1,6,6],[7,1,7,6],[8,1,8,6],[9,1,9,5],[11,0,11,1]]}
["REKAPITULACIJA SVIH RADOVA "]
[]
[1,"SAOBRAĆAJNICA",{"$nulls":5},{"$f":"Saobraćajnica!F91","v":{"v":0,"d":"0.00"}}]
[2,"REKONSTRUKCIJA TEHNICKE PROSTORIJE",{"$nulls":5},{"$f":"'Teh.pros.'!H40","v":{"v":0,"d":"0.00"}}]
[3,"REKONSTRUKCIJA VODOVODNE MREŽE U PARKU",{"$nulls":5},{"$f":"'Voda u parku'!H61","v":{"v":0,"d":"0.00"}}]
[4,"REKONSTRUKCIJA FEKALNE KANALIZACIONE MREŽE U PARKU",{"$nulls":5},{"$f":"'Fekalna kanalizacija u parku'!H67","v":{"v":0,"d":"0.00"}}]
[5,"ZALIVNI SISTEM PARKA",{"$nulls":5},{"$f":"'Zalivni sistem'!H51","v":{"v":0,"d":"0.00"}}]
[6,"ELEKTROENERGETSKE INSTALACIJE",{"$nulls":5},{"$f":"'EE Instalacije'!F94","v":{"v":0,"d":"0.00"}}]
[7,"SPOLJNO UREĐENJE",{"$nulls":5},{"$f":"Spoljnouredjenje!H187","v":{"v":0,"d":"0.00"}}]
[null,"UKUPNA VREDNOST RADOVA SVIH PROJEKATA",{"$nulls":5},{"$f":"SUM(H2:H9)","v":{"v":0,"d":"0.00"}}]
[]
["UKUPNO (bez PDV-a):",{"$nulls":6},{"$f":"+H10","v":{"v":0,"d":"0.00"}}]
[null,"PDV:"]
[null,"UKUPNO (sa PDV-om):"]